{"text_format":"1","workbook":"xlsx","n_sheets":3,"sheets":["_deleteMailMergeSchema","PayrollSum","_hidePayslip"],"not_rendered":{"charts":0,"images":0,"macros":1,"external_links":0,"defined_names":0,"comments":1,"pivot_tables":0},"unopened":[],"bounds":{"document_bytes":16777216,"sheet_cells":100000,"rows_first":2000,"rows_last":500,"rows_between":2000,"halvings":0,"cell_chars":16384,"cell_head_chars":4096},"cells_cut":0,"cells_raw":0,"read":"whole","date_system":"1900"}

{"sheet":"_deleteMailMergeSchema","index":0,"n_rows":12,"n_cols":4,"rows_kept":12,"cut":false,"hidden":false,"merged":[]}
["This is the schema to be used in filling up the data table. The table name should be the referring TableName+Schema Ex: CEDetailSchema"]
["T10 uses the table name in mapping the source data and the excel table. You can add clone at the end if you want to fill several excel tables with one data source. EX: CEDetailClone1, CEDetalClone2"]
["Sheets with name starting with \"_delete\" or \"_hide\" will be deleted or hide, respectively."]
[]
["Key","Value",null,"Remarks"]
["MailMergeTemplateSheetName","Payslip",null,"Mailmerge Template sheet with formula reference to the MailMergeTableName. Formula should be as simple as referring to the cell only. Ex: =TableSheename!E8. The generated mailmerge copy will have a formula of E9"]
["MailMergeNewSheetName","{EmpID}-PS-{DocNo}",null,"Created mailmerge new sheet name. You can use table column name here enclosed in {} which will be dynamically evaluated"]
["MailMergeParentTableName","PayrollSum",null,"Mailmerge Table name where the data will be taken"]
["MailMergePrimaryKey","EmpID"]
["MailMergeIntervalCopy",1,null,"Mailmerge number of records within the template. Ex: Payslip may contain 2 records in one template to save paper"]
["ProtectSheet","N"]
["Password"]

{"sheet":"PayrollSum","index":1,"n_rows":110,"n_cols":131,"rows_kept":110,"cut":false,"hidden":false,"merged":[[3,20,3,29],[3,47,3,51],[3,52,3,56]]}
[null,null,null,"@CoName"]
[null,null,null,"PAYROLL SUMMARY"]
[null,null,null,"Period:",{"$f":"C7","v":"jAN 1-15"},null,null,null,null,null,null,null,null,null,null,null,null,null,null,null,null,null,null,null,null,null,null,null,null,null,null,"  "]
[null,null,null,"DocNo",{"$f":"B7","v":"201611"},null,null,null,null,null,null,null,null,null,null,null,null,null,null,null,"Addional Compensation",null,null,null,null,null,null,null,null,null,null,"Deductions",null,null,null,null,null,null,null,null,null,null,"Premium Contributions-Employee Share",null,null,null,null,"Premium Contributions-Employer Share",null,null,null,null,"Additonal Compensation - Details"]
["CoID","DocNo","PayDesc","EmpID","Name","Take Home Pay","Basic Pay","Overtime Pay","Holiday Pay","Night Diff Pay","Lates & Absences","Total Compensation","PERA","RATA","COLA","Hazard Pay","SLVL","Bonus","13th Month","Service Charge","Transpo Allowance","Uniform Allowance","ColumnTitle","ColumnTitle","ColumnTitle","ColumnTitle","ColumnTitle","ColumnTitle","ColumnTitle","ColumnTitle","Gross Pay","Pag-ibig Loan","ColumnTitle","ColumnTitle","ColumnTitle","ColumnTitle","ColumnTitle","ColumnTitle","ColumnTitle","ColumnTitle","ColumnTitle","Wtax","GSIS/SSS","Pag-ibig","PHIC/EC","Total Deductions","Net Pay","GSIS/SSS","EC","Pag-ibig","PHIC/EC","Total Employer Contr.","Deminimis","Tax Free","Other Taxable ","Other Non-taxable","Total","TaxType","DeptID","DeptName","ContractNo","PayYear","PayMonth","PaydayRate","DailyRate","HourlyRate","DaysWorked","DaysOT","DaysOOT","Hrs_Late","Lates","Days_Absence","Absences","Hrs_RT_RegDay","Hrs_OT_RegDay","Hrs_ND_RegDay","Hrs_OTND_RegDay","RT_RegDay","OT_RegDay","ND_RegDay","OTND_RegDay","Hrs_RT_RestDay","Hrs_OT_RestDay","Hrs_ND_RestDay","Hrs_OTND_RestDay","RT_RestDay","OT_RestDay","ND_RestDay","OTND_RestDay","Hrs_RT_Holiday","Hrs_OT_Holiday","Hrs_ND_Holiday","Hrs_OTND_Holiday","RT_Holiday","OT_Holiday","ND_Holiday","OTND_Holiday","Hrs_RT_HolidayRestDay","Hrs_OT_HolidayRestDay","Hrs_ND_HolidayRestDay","Hrs_OTND_HolidayRestDay","RT_HolidayRestDay","OT_HolidayRestDay","ND_HolidayRestDay","OTND_HolidayRestDay","Hrs_RT_SpecialDay","Hrs_OT_SpecialDay","Hrs_ND_SpecialDay","Hrs_OTND_SpecialDay","RT_SpecialDay","OT_SpecialDay","ND_SpecialDay","OTND_SpecialDay","Hrs_RT_SpecialDayRestDay","Hrs_OT_SpecialDayRestDay","Hrs_ND_SpecialDayRestDay","Hrs_OTND_SpecialDayRestDay","RT_SpecialDayRestDay","OT_SpecialDayRestDay","ND_SpecialDayRestDay","OTND_SpecialDayRestDay","Days_HolidayPay","Days_SL_Taxable","Days_SL_NonTaxable","Days_VL_Taxable","Days_VL_NonTaxable","SL_NonTaxable","VL_NonTaxable","SL_Taxable","VL_Taxable","HideRow"]
["CoID","DocNo","PayDesc","EmpID","EmpName","TakeHomePay","BasicPay","OvertimePay","HolidayPay","NightShiftDifferential","LatesAndAbsences","Salaries2","PERA","RATA","COLA","HazardPay","SLVL","Bonus","Month13Pay","ServiceCharge","MapColumn1Addition","MapColumn2Addition","MapColumn3Addition","MapColumn4Addition","MapColumn5Addition","MapColumn6Addition","MapColumn7Addition","MapColumn8Addition","MapColumn9Addition","MapColumn10Addition","GCI","MapColumn1Deduction","MapColumn2Deduction","MapColumn3Deduction","MapColumn4Deduction","MapColumn5Deduction","MapColumn6Deduction","MapColumn7Deduction","MapColumn8Deduction","MapColumn9Deduction","MapColumn10Deduction","WTax","SssContributionEE","PagibigContributionEE","PhicContributionEE","TotalDeduction","NetPay","SssContributionER","EC","PagibigContributionER","PhicContributionER","TotalEmployerContr","DeMinimisBenefit","TaxFreeThresholdIncome","OtherTaxableIncome","OtherNonTaxableIncome","TotalAddlPayDetail","PayTaxTypeID","DeptID","DeptName","ContractNo","PayYear","PayMonth","PaydayRate","DailyRate","HourlyRate","DaysWorked","DaysOT","DaysOOT","Hrs_Late","Lates","Days_Absence","Absences","Hrs_RT_RegDay","Hrs_OT_RegDay","Hrs_ND_RegDay","Hrs_OTND_RegDay","RT_RegDay","OT_RegDay","ND_RegDay","OTND_RegDay","Hrs_RT_RestDay","Hrs_OT_RestDay","Hrs_ND_RestDay","Hrs_OTND_RestDay","RT_RestDay","OT_RestDay","ND_RestDay","OTND_RestDay","Hrs_RT_Holiday","Hrs_OT_Holiday","Hrs_ND_Holiday","Hrs_OTND_Holiday","RT_Holiday","OT_Holiday","ND_Holiday","OTND_Holiday","Hrs_RT_HolidayRestDay","Hrs_OT_HolidayRestDay","Hrs_ND_HolidayRestDay","Hrs_OTND_HolidayRestDay","RT_HolidayRestDay","OT_HolidayRestDay","ND_HolidayRestDay","OTND_HolidayRestDay","Hrs_RT_SpecialDay","Hrs_OT_SpecialDay","Hrs_ND_SpecialDay","Hrs_OTND_SpecialDay","RT_SpecialDay","OT_SpecialDay","ND_SpecialDay","OTND_SpecialDay","Hrs_RT_SpecialDayRestDay","Hrs_OT_SpecialDayRestDay","Hrs_ND_SpecialDayRestDay","Hrs_OTND_SpecialDayRestDay","RT_SpecialDayRestDay","OT_SpecialDayRestDay","ND_SpecialDayRestDay","OTND_SpecialDayRestDay","Days_HolidayPay","Days_SL_Taxable","Days_SL_NonTaxable","Days_VL_Taxable","Days_VL_NonTaxable","SL_NonTaxable","VL_NonTaxable","SL_Taxable","VL_Taxable","HideRow"]
["SRDC","201611","jAN 1-15"]
["SRDC","201611","jAN 1-15"]
["SRDC","201611","jAN 1-15"]
[null,null,null,null,null,null,null,null,null,null,null,{"$f":"SUM(PayrollSum[[#This Row],[BasicPay]:[NightShiftDifferential]])-PayrollSum[[#This Row],[LatesAndAbsences]]","v":0},null,null,null,null,null,null,null,null,null,null,null,null,null,null,null,null,null,null,{"$f":"SUM(PayrollSum[[#This Row],[Salaries2]:[MapColumn10Addition]])","v":0},null,null,null,null,null,null,null,null,null,null,null,null,null,null,{"$f":"SUM(PayrollSum[[#This Row],[MapColumn1Deduction]:[PhicContributionEE]])","v":0},{"$f":"+PayrollSum[[#This Row],[GCI]]-PayrollSum[[#This Row],[TotalDeduction]]","v":0},null,null,null,null,{"$f":"SUM(PayrollSum[[#This Row],[SssContributionER]:[PhicContributionER]])","v":0},null,null,null,null,{"$f":"SUM(PayrollSum[[#This Row],[DeMinimisBenefit]:[OtherNonTaxableIncome]])","v":0},null,null,null,null,null,null,null,null,null,null,null,null,null,null,null,null,null,null,null,null,null,null,null,null,null,null,null,null,null,null,null,null,null,null,null,null,null,null,null,null,null,null,null,null,null,null,null,null,null,null,null,null,null,null,null,null,null,null,null,null,null,null,null,null,null,null,null,null,null,null,null,null,null,"Y"]
[null,null,null,null,null,null,null,null,null,null,null,{"$f":"SUM(PayrollSum[[#This Row],[BasicPay]:[NightShiftDifferential]])-PayrollSum[[#This Row],[LatesAndAbsences]]","v":0},null,null,null,null,null,null,null,null,null,null,null,null,null,null,null,null,null,null,{"$f":"SUM(PayrollSum[[#This Row],[Salaries2]:[MapColumn10Addition]])","v":0},null,null,null,null,null,null,null,null,null,null,null,null,null,null,{"$f":"SUM(PayrollSum[[#This Row],[MapColumn1Deduction]:[PhicContributionEE]])","v":0},{"$f":"+PayrollSum[[#This Row],[GCI]]-PayrollSum[[#This Row],[TotalDeduction]]","v":0},null,null,null,null,{"$f":"SUM(PayrollSum[[#This Row],[SssContributionER]:[PhicContributionER]])","v":0},null,null,null,null,{"$f":"SUM(PayrollSum[[#This Row],[DeMinimisBenefit]:[OtherNonTaxableIncome]])","v":0},null,null,null,null,null,null,null,null,null,null,null,null,null,null,null,null,null,null,null,null,null,null,null,null,null,null,null,null,null,null,null,null,null,null,null,null,null,null,null,null,null,null,null,null,null,null,null,null,null,null,null,null,null,null,null,null,null,null,null,null,null,null,null,null,null,null,null,null,null,null,null,null,null,"Y"]
[null,null,null,null,null,null,null,null,null,null,null,{"$f":"SUM(PayrollSum[[#This Row],[BasicPay]:[NightShiftDifferential]])-PayrollSum[[#This Row],[LatesAndAbsences]]","v":0},null,null,null,null,null,null,null,null,null,null,null,null,null,null,null,null,null,null,{"$f":"SUM(PayrollSum[[#This Row],[Salaries2]:[MapColumn10Addition]])","v":0},null,null,null,null,null,null,null,null,null,null,null,null,null,null,{"$f":"SUM(PayrollSum[[#This Row],[MapColumn1Deduction]:[PhicContributionEE]])","v":0},{"$f":"+PayrollSum[[#This Row],[GCI]]-PayrollSum[[#This Row],[TotalDeduction]]","v":0},null,null,null,null,{"$f":"SUM(PayrollSum[[#This Row],[SssContributionER]:[PhicContributionER]])","v":0},null,null,null,null,{"$f":"SUM(PayrollSum[[#This Row],[DeMinimisBenefit]:[OtherNonTaxableIncome]])","v":0},null,null,null,null,null,null,null,null,null,null,null,null,null,null,null,null,null,null,null,null,null,null,null,null,null,null,null,null,null,null,null,null,null,null,null,null,null,null,null,null,null,null,null,null,null,null,null,null,null,null,null,null,null,null,null,null,null,null,null,null,null,null,null,null,null,null,null,null,null,null,null,null,null,"Y"]
[null,null,null,null,null,null,null,null,null,null,null,{"$f":"SUM(PayrollSum[[#This Row],[BasicPay]:[NightShiftDifferential]])-PayrollSum[[#This Row],[LatesAndAbsences]]","v":0},null,null,null,null,null,null,null,null,null,null,null,null,null,null,null,null,null,null,{"$f":"SUM(PayrollSum[[#This Row],[Salaries2]:[MapColumn10Addition]])","v":0},null,null,null,null,null,null,null,null,null,null,null,null,null,null,{"$f":"SUM(PayrollSum[[#This Row],[MapColumn1Deduction]:[PhicContributionEE]])","v":0},{"$f":"+PayrollSum[[#This Row],[GCI]]-PayrollSum[[#This Row],[TotalDeduction]]","v":0},null,null,null,null,{"$f":"SUM(PayrollSum[[#This Row],[SssContributionER]:[PhicContributionER]])","v":0},null,null,null,null,{"$f":"SUM(PayrollSum[[#This Row],[DeMinimisBenefit]:[OtherNonTaxableIncome]])","v":0},null,null,null,null,null,null,null,null,null,null,null,null,null,null,null,null,null,null,null,null,null,null,null,null,null,null,null,null,null,null,null,null,null,null,null,null,null,null,null,null,null,null,null,null,null,null,null,null,null,null,null,null,null,null,null,null,null,null,null,null,null,null,null,null,null,null,null,null,null,null,null,null,null,"Y"]
[null,null,null,null,null,null,null,null,null,null,null,{"$f":"SUM(PayrollSum[[#This Row],[BasicPay]:[NightShiftDifferential]])-PayrollSum[[#This Row],[LatesAndAbsences]]","v":0},null,null,null,null,null,null,null,null,null,null,null,null,null,null,null,null,null,null,{"$f":"SUM(PayrollSum[[#This Row],[Salaries2]:[MapColumn10Addition]])","v":0},null,null,null,null,null,null,null,null,null,null,null,null,null,null,{"$f":"SUM(PayrollSum[[#This Row],[MapColumn1Deduction]:[PhicContributionEE]])","v":0},{"$f":"+PayrollSum[[#This Row],[GCI]]-PayrollSum[[#This Row],[TotalDeduction]]","v":0},null,null,null,null,{"$f":"SUM(PayrollSum[[#This Row],[SssContributionER]:[PhicContributionER]])","v":0},null,null,null,null,{"$f":"SUM(PayrollSum[[#This Row],[DeMinimisBenefit]:[OtherNonTaxableIncome]])","v":0},null,null,null,null,null,null,null,null,null,null,null,null,null,null,null,null,null,null,null,null,null,null,null,null,null,null,null,null,null,null,null,null,null,null,null,null,null,null,null,null,null,null,null,null,null,null,null,null,null,null,null,null,null,null,null,null,null,null,null,null,null,null,null,null,null,null,null,null,null,null,null,null,null,"Y"]
[null,null,null,null,null,null,null,null,null,null,null,{"$f":"SUM(PayrollSum[[#This Row],[BasicPay]:[NightShiftDifferential]])-PayrollSum[[#This Row],[LatesAndAbsences]]","v":0},null,null,null,null,null,null,null,null,null,null,null,null,null,null,null,null,null,null,{"$f":"SUM(PayrollSum[[#This Row],[Salaries2]:[MapColumn10Addition]])","v":0},null,null,null,null,null,null,null,null,null,null,null,null,null,null,{"$f":"SUM(PayrollSum[[#This Row],[MapColumn1Deduction]:[PhicContributionEE]])","v":0},{"$f":"+PayrollSum[[#This Row],[GCI]]-PayrollSum[[#This Row],[TotalDeduction]]","v":0},null,null,null,null,{"$f":"SUM(PayrollSum[[#This Row],[SssContributionER]:[PhicContributionER]])","v":0},null,null,null,null,{"$f":"SUM(PayrollSum[[#This Row],[DeMinimisBenefit]:[OtherNonTaxableIncome]])","v":0},null,null,null,null,null,null,null,null,null,null,null,null,null,null,null,null,null,null,null,null,null,null,null,null,null,null,null,null,null,null,null,null,null,null,null,null,null,null,null,null,null,null,null,null,null,null,null,null,null,null,null,null,null,null,null,null,null,null,null,null,null,null,null,null,null,null,null,null,null,null,null,null,null,"Y"]
[null,null,null,null,null,null,null,null,null,null,null,{"$f":"SUM(PayrollSum[[#This Row],[BasicPay]:[NightShiftDifferential]])-PayrollSum[[#This Row],[LatesAndAbsences]]","v":0},null,null,null,null,null,null,null,null,null,null,null,null,null,null,null,null,null,null,{"$f":"SUM(PayrollSum[[#This Row],[Salaries2]:[MapColumn10Addition]])","v":0},null,null,null,null,null,null,null,null,null,null,null,null,null,null,{"$f":"SUM(PayrollSum[[#This Row],[MapColumn1Deduction]:[PhicContributionEE]])","v":0},{"$f":"+PayrollSum[[#This Row],[GCI]]-PayrollSum[[#This Row],[TotalDeduction]]","v":0},null,null,null,null,{"$f":"SUM(PayrollSum[[#This Row],[SssContributionER]:[PhicContributionER]])","v":0},null,null,null,null,{"$f":"SUM(PayrollSum[[#This Row],[DeMinimisBenefit]:[OtherNonTaxableIncome]])","v":0},null,null,null,null,null,null,null,null,null,null,null,null,null,null,null,null,null,null,null,null,null,null,null,null,null,null,null,null,null,null,null,null,null,null,null,null,null,null,null,null,null,null,null,null,null,null,null,null,null,null,null,null,null,null,null,null,null,null,null,null,null,null,null,null,null,null,null,null,null,null,null,null,null,"Y"]
[null,null,null,null,null,null,null,null,null,null,null,{"$f":"SUM(PayrollSum[[#This Row],[BasicPay]:[NightShiftDifferential]])-PayrollSum[[#This Row],[LatesAndAbsences]]","v":0},null,null,null,null,null,null,null,null,null,null,null,null,null,null,null,null,null,null,{"$f":"SUM(PayrollSum[[#This Row],[Salaries2]:[MapColumn10Addition]])","v":0},null,null,null,null,null,null,null,null,null,null,null,null,null,null,{"$f":"SUM(PayrollSum[[#This Row],[MapColumn1Deduction]:[PhicContributionEE]])","v":0},{"$f":"+PayrollSum[[#This Row],[GCI]]-PayrollSum[[#This Row],[TotalDeduction]]","v":0},null,null,null,null,{"$f":"SUM(PayrollSum[[#This Row],[SssContributionER]:[PhicContributionER]])","v":0},null,null,null,null,{"$f":"SUM(PayrollSum[[#This Row],[DeMinimisBenefit]:[OtherNonTaxableIncome]])","v":0},null,null,null,null,null,null,null,null,null,null,null,null,null,null,null,null,null,null,null,null,null,null,null,null,null,null,null,null,null,null,null,null,null,null,null,null,null,null,null,null,null,null,null,null,null,null,null,null,null,null,null,null,null,null,null,null,null,null,null,null,null,null,null,null,null,null,null,null,null,null,null,null,null,"Y"]
[null,null,null,null,null,null,null,null,null,null,null,{"$f":"SUM(PayrollSum[[#This Row],[BasicPay]:[NightShiftDifferential]])-PayrollSum[[#This Row],[LatesAndAbsences]]","v":0},null,null,null,null,null,null,null,null,null,null,null,null,null,null,null,null,null,null,{"$f":"SUM(PayrollSum[[#This Row],[Salaries2]:[MapColumn10Addition]])","v":0},null,null,null,null,null,null,null,null,null,null,null,null,null,null,{"$f":"SUM(PayrollSum[[#This Row],[MapColumn1Deduction]:[PhicContributionEE]])","v":0},{"$f":"+PayrollSum[[#This Row],[GCI]]-PayrollSum[[#This Row],[TotalDeduction]]","v":0},null,null,null,null,{"$f":"SUM(PayrollSum[[#This Row],[SssContributionER]:[PhicContributionER]])","v":0},null,null,null,null,{"$f":"SUM(PayrollSum[[#This Row],[DeMinimisBenefit]:[OtherNonTaxableIncome]])","v":0},null,null,null,null,null,null,null,null,null,null,null,null,null,null,null,null,null,null,null,null,null,null,null,null,null,null,null,null,null,null,null,null,null,null,null,null,null,null,null,null,null,null,null,null,null,null,null,null,null,null,null,null,null,null,null,null,null,null,null,null,null,null,null,null,null,null,null,null,null,null,null,null,null,"Y"]
[null,null,null,null,null,null,null,null,null,null,null,{"$f":"SUM(PayrollSum[[#This Row],[BasicPay]:[NightShiftDifferential]])-PayrollSum[[#This Row],[LatesAndAbsences]]","v":0},null,null,null,null,null,null,null,null,null,null,null,null,null,null,null,null,null,null,{"$f":"SUM(PayrollSum[[#This Row],[Salaries2]:[MapColumn10Addition]])","v":0},null,null,null,null,null,null,null,null,null,null,null,null,null,null,{"$f":"SUM(PayrollSum[[#This Row],[MapColumn1Deduction]:[PhicContributionEE]])","v":0},{"$f":"+PayrollSum[[#This Row],[GCI]]-PayrollSum[[#This Row],[TotalDeduction]]","v":0},null,null,null,null,{"$f":"SUM(PayrollSum[[#This Row],[SssContributionER]:[PhicContributionER]])","v":0},null,null,null,null,{"$f":"SUM(PayrollSum[[#This Row],[DeMinimisBenefit]:[OtherNonTaxableIncome]])","v":0},null,null,null,null,null,null,null,null,null,null,null,null,null,null,null,null,null,null,null,null,null,null,null,null,null,null,null,null,null,null,null,null,null,null,null,null,null,null,null,null,null,null,null,null,null,null,null,null,null,null,null,null,null,null,null,null,null,null,null,null,null,null,null,null,null,null,null,null,null,null,null,null,null,"Y"]
[null,null,null,null,null,null,null,null,null,null,null,{"$f":"SUM(PayrollSum[[#This Row],[BasicPay]:[NightShiftDifferential]])-PayrollSum[[#This Row],[LatesAndAbsences]]","v":0},null,null,null,null,null,null,null,null,null,null,null,null,null,null,null,null,null,null,{"$f":"SUM(PayrollSum[[#This Row],[Salaries2]:[MapColumn10Addition]])","v":0},null,null,null,null,null,null,null,null,null,null,null,null,null,null,{"$f":"SUM(PayrollSum[[#This Row],[MapColumn1Deduction]:[PhicContributionEE]])","v":0},{"$f":"+PayrollSum[[#This Row],[GCI]]-PayrollSum[[#This Row],[TotalDeduction]]","v":0},null,null,null,null,{"$f":"SUM(PayrollSum[[#This Row],[SssContributionER]:[PhicContributionER]])","v":0},null,null,null,null,{"$f":"SUM(PayrollSum[[#This Row],[DeMinimisBenefit]:[OtherNonTaxableIncome]])","v":0},null,null,null,null,null,null,null,null,null,null,null,null,null,null,null,null,null,null,null,null,null,null,null,null,null,null,null,null,null,null,null,null,null,null,null,null,null,null,null,null,null,null,null,null,null,null,null,null,null,null,null,null,null,null,null,null,null,null,null,null,null,null,null,null,null,null,null,null,null,null,null,null,null,"Y"]
[null,null,null,null,null,null,null,null,null,null,null,{"$f":"SUM(PayrollSum[[#This Row],[BasicPay]:[NightShiftDifferential]])-PayrollSum[[#This Row],[LatesAndAbsences]]","v":0},null,null,null,null,null,null,null,null,null,null,null,null,null,null,null,null,null,null,{"$f":"SUM(PayrollSum[[#This Row],[Salaries2]:[MapColumn10Addition]])","v":0},null,null,null,null,null,null,null,null,null,null,null,null,null,null,{"$f":"SUM(PayrollSum[[#This Row],[MapColumn1Deduction]:[PhicContributionEE]])","v":0},{"$f":"+PayrollSum[[#This Row],[GCI]]-PayrollSum[[#This Row],[TotalDeduction]]","v":0},null,null,null,null,{"$f":"SUM(PayrollSum[[#This Row],[SssContributionER]:[PhicContributionER]])","v":0},null,null,null,null,{"$f":"SUM(PayrollSum[[#This Row],[DeMinimisBenefit]:[OtherNonTaxableIncome]])","v":0},null,null,null,null,null,null,null,null,null,null,null,null,null,null,null,null,null,null,null,null,null,null,null,null,null,null,null,null,null,null,null,null,null,null,null,null,null,null,null,null,null,null,null,null,null,null,null,null,null,null,null,null,null,null,null,null,null,null,null,null,null,null,null,null,null,null,null,null,null,null,null,null,null,"Y"]
[null,null,null,null,null,null,null,null,null,null,null,{"$f":"SUM(PayrollSum[[#This Row],[BasicPay]:[NightShiftDifferential]])-PayrollSum[[#This Row],[LatesAndAbsences]]","v":0},null,null,null,null,null,null,null,null,null,null,null,null,null,null,null,null,null,null,{"$f":"SUM(PayrollSum[[#This Row],[Salaries2]:[MapColumn10Addition]])","v":0},null,null,null,null,null,null,null,null,null,null,null,null,null,null,{"$f":"SUM(PayrollSum[[#This Row],[MapColumn1Deduction]:[PhicContributionEE]])","v":0},{"$f":"+PayrollSum[[#This Row],[GCI]]-PayrollSum[[#This Row],[TotalDeduction]]","v":0},null,null,null,null,{"$f":"SUM(PayrollSum[[#This Row],[SssContributionER]:[PhicContributionER]])","v":0},null,null,null,null,{"$f":"SUM(PayrollSum[[#This Row],[DeMinimisBenefit]:[OtherNonTaxableIncome]])","v":0},null,null,null,null,null,null,null,null,null,null,null,null,null,null,null,null,null,null,null,null,null,null,null,null,null,null,null,null,null,null,null,null,null,null,null,null,null,null,null,null,null,null,null,null,null,null,null,null,null,null,null,null,null,null,null,null,null,null,null,null,null,null,null,null,null,null,null,null,null,null,null,null,null,"Y"]
[null,null,null,null,null,null,null,null,null,null,null,{"$f":"SUM(PayrollSum[[#This Row],[BasicPay]:[NightShiftDifferential]])-PayrollSum[[#This Row],[LatesAndAbsences]]","v":0},null,null,null,null,null,null,null,null,null,null,null,null,null,null,null,null,null,null,{"$f":"SUM(PayrollSum[[#This Row],[Salaries2]:[MapColumn10Addition]])","v":0},null,null,null,null,null,null,null,null,null,null,null,null,null,null,{"$f":"SUM(PayrollSum[[#This Row],[MapColumn1Deduction]:[PhicContributionEE]])","v":0},{"$f":"+PayrollSum[[#This Row],[GCI]]-PayrollSum[[#This Row],[TotalDeduction]]","v":0},null,null,null,null,{"$f":"SUM(PayrollSum[[#This Row],[SssContributionER]:[PhicContributionER]])","v":0},null,null,null,null,{"$f":"SUM(PayrollSum[[#This Row],[DeMinimisBenefit]:[OtherNonTaxableIncome]])","v":0},null,null,null,null,null,null,null,null,null,null,null,null,null,null,null,null,null,null,null,null,null,null,null,null,null,null,null,null,null,null,null,null,null,null,null,null,null,null,null,null,null,null,null,null,null,null,null,null,null,null,null,null,null,null,null,null,null,null,null,null,null,null,null,null,null,null,null,null,null,null,null,null,null,"Y"]
[null,null,null,null,null,null,null,null,null,null,null,{"$f":"SUM(PayrollSum[[#This Row],[BasicPay]:[NightShiftDifferential]])-PayrollSum[[#This Row],[LatesAndAbsences]]","v":0},null,null,null,null,null,null,null,null,null,null,null,null,null,null,null,null,null,null,{"$f":"SUM(PayrollSum[[#This Row],[Salaries2]:[MapColumn10Addition]])","v":0},null,null,null,null,null,null,null,null,null,null,null,null,null,null,{"$f":"SUM(PayrollSum[[#This Row],[MapColumn1Deduction]:[PhicContributionEE]])","v":0},{"$f":"+PayrollSum[[#This Row],[GCI]]-PayrollSum[[#This Row],[TotalDeduction]]","v":0},null,null,null,null,{"$f":"SUM(PayrollSum[[#This Row],[SssContributionER]:[PhicContributionER]])","v":0},null,null,null,null,{"$f":"SUM(PayrollSum[[#This Row],[DeMinimisBenefit]:[OtherNonTaxableIncome]])","v":0},null,null,null,null,null,null,null,null,null,null,null,null,null,null,null,null,null,null,null,null,null,null,null,null,null,null,null,null,null,null,null,null,null,null,null,null,null,null,null,null,null,null,null,null,null,null,null,null,null,null,null,null,null,null,null,null,null,null,null,null,null,null,null,null,null,null,null,null,null,null,null,null,null,"Y"]
[null,null,null,null,null,null,null,null,null,null,null,{"$f":"SUM(PayrollSum[[#This Row],[BasicPay]:[NightShiftDifferential]])-PayrollSum[[#This Row],[LatesAndAbsences]]","v":0},null,null,null,null,null,null,null,null,null,null,null,null,null,null,null,null,null,null,{"$f":"SUM(PayrollSum[[#This Row],[Salaries2]:[MapColumn10Addition]])","v":0},null,null,null,null,null,null,null,null,null,null,null,null,null,null,{"$f":"SUM(PayrollSum[[#This Row],[MapColumn1Deduction]:[PhicContributionEE]])","v":0},{"$f":"+PayrollSum[[#This Row],[GCI]]-PayrollSum[[#This Row],[TotalDeduction]]","v":0},null,null,null,null,{"$f":"SUM(PayrollSum[[#This Row],[SssContributionER]:[PhicContributionER]])","v":0},null,null,null,null,{"$f":"SUM(PayrollSum[[#This Row],[DeMinimisBenefit]:[OtherNonTaxableIncome]])","v":0},null,null,null,null,null,null,null,null,null,null,null,null,null,null,null,null,null,null,null,null,null,null,null,null,null,null,null,null,null,null,null,null,null,null,null,null,null,null,null,null,null,null,null,null,null,null,null,null,null,null,null,null,null,null,null,null,null,null,null,null,null,null,null,null,null,null,null,null,null,null,null,null,null,"Y"]
[null,null,null,null,null,null,null,null,null,null,null,{"$f":"SUM(PayrollSum[[#This Row],[BasicPay]:[NightShiftDifferential]])-PayrollSum[[#This Row],[LatesAndAbsences]]","v":0},null,null,null,null,null,null,null,null,null,null,null,null,null,null,null,null,null,null,{"$f":"SUM(PayrollSum[[#This Row],[Salaries2]:[MapColumn10Addition]])","v":0},null,null,null,null,null,null,null,null,null,null,null,null,null,null,{"$f":"SUM(PayrollSum[[#This Row],[MapColumn1Deduction]:[PhicContributionEE]])","v":0},{"$f":"+PayrollSum[[#This Row],[GCI]]-PayrollSum[[#This Row],[TotalDeduction]]","v":0},null,null,null,null,{"$f":"SUM(PayrollSum[[#This Row],[SssContributionER]:[PhicContributionER]])","v":0},null,null,null,null,{"$f":"SUM(PayrollSum[[#This Row],[DeMinimisBenefit]:[OtherNonTaxableIncome]])","v":0},null,null,null,null,null,null,null,null,null,null,null,null,null,null,null,null,null,null,null,null,null,null,null,null,null,null,null,null,null,null,null,null,null,null,null,null,null,null,null,null,null,null,null,null,null,null,null,null,null,null,null,null,null,null,null,null,null,null,null,null,null,null,null,null,null,null,null,null,null,null,null,null,null,"Y"]
[null,null,null,null,null,null,null,null,null,null,null,{"$f":"SUM(PayrollSum[[#This Row],[BasicPay]:[NightShiftDifferential]])-PayrollSum[[#This Row],[LatesAndAbsences]]","v":0},null,null,null,null,null,null,null,null,null,null,null,null,null,null,null,null,null,null,{"$f":"SUM(PayrollSum[[#This Row],[Salaries2]:[MapColumn10Addition]])","v":0},null,null,null,null,null,null,null,null,null,null,null,null,null,null,{"$f":"SUM(PayrollSum[[#This Row],[MapColumn1Deduction]:[PhicContributionEE]])","v":0},{"$f":"+PayrollSum[[#This Row],[GCI]]-PayrollSum[[#This Row],[TotalDeduction]]","v":0},null,null,null,null,{"$f":"SUM(PayrollSum[[#This Row],[SssContributionER]:[PhicContributionER]])","v":0},null,null,null,null,{"$f":"SUM(PayrollSum[[#This Row],[DeMinimisBenefit]:[OtherNonTaxableIncome]])","v":0},null,null,null,null,null,null,null,null,null,null,null,null,null,null,null,null,null,null,null,null,null,null,null,null,null,null,null,null,null,null,null,null,null,null,null,null,null,null,null,null,null,null,null,null,null,null,null,null,null,null,null,null,null,null,null,null,null,null,null,null,null,null,null,null,null,null,null,null,null,null,null,null,null,"Y"]
[null,null,null,null,null,null,null,null,null,null,null,{"$f":"SUM(PayrollSum[[#This Row],[BasicPay]:[NightShiftDifferential]])-PayrollSum[[#This Row],[LatesAndAbsences]]","v":0},null,null,null,null,null,null,null,null,null,null,null,null,null,null,null,null,null,null,{"$f":"SUM(PayrollSum[[#This Row],[Salaries2]:[MapColumn10Addition]])","v":0},null,null,null,null,null,null,null,null,null,null,null,null,null,null,{"$f":"SUM(PayrollSum[[#This Row],[MapColumn1Deduction]:[PhicContributionEE]])","v":0},{"$f":"+PayrollSum[[#This Row],[GCI]]-PayrollSum[[#This Row],[TotalDeduction]]","v":0},null,null,null,null,{"$f":"SUM(PayrollSum[[#This Row],[SssContributionER]:[PhicContributionER]])","v":0},null,null,null,null,{"$f":"SUM(PayrollSum[[#This Row],[DeMinimisBenefit]:[OtherNonTaxableIncome]])","v":0},null,null,null,null,null,null,null,null,null,null,null,null,null,null,null,null,null,null,null,null,null,null,null,null,null,null,null,null,null,null,null,null,null,null,null,null,null,null,null,null,null,null,null,null,null,null,null,null,null,null,null,null,null,null,null,null,null,null,null,null,null,null,null,null,null,null,null,null,null,null,null,null,null,"Y"]
[null,null,null,null,null,null,null,null,null,null,null,{"$f":"SUM(PayrollSum[[#This Row],[BasicPay]:[NightShiftDifferential]])-PayrollSum[[#This Row],[LatesAndAbsences]]","v":0},null,null,null,null,null,null,null,null,null,null,null,null,null,null,null,null,null,null,{"$f":"SUM(PayrollSum[[#This Row],[Salaries2]:[MapColumn10Addition]])","v":0},null,null,null,null,null,null,null,null,null,null,null,null,null,null,{"$f":"SUM(PayrollSum[[#This Row],[MapColumn1Deduction]:[PhicContributionEE]])","v":0},{"$f":"+PayrollSum[[#This Row],[GCI]]-PayrollSum[[#This Row],[TotalDeduction]]","v":0},null,null,null,null,{"$f":"SUM(PayrollSum[[#This Row],[SssContributionER]:[PhicContributionER]])","v":0},null,null,null,null,{"$f":"SUM(PayrollSum[[#This Row],[DeMinimisBenefit]:[OtherNonTaxableIncome]])","v":0},null,null,null,null,null,null,null,null,null,null,null,null,null,null,null,null,null,null,null,null,null,null,null,null,null,null,null,null,null,null,null,null,null,null,null,null,null,null,null,null,null,null,null,null,null,null,null,null,null,null,null,null,null,null,null,null,null,null,null,null,null,null,null,null,null,null,null,null,null,null,null,null,null,"Y"]
[null,null,null,null,null,null,null,null,null,null,null,{"$f":"SUM(PayrollSum[[#This Row],[BasicPay]:[NightShiftDifferential]])-PayrollSum[[#This Row],[LatesAndAbsences]]","v":0},null,null,null,null,null,null,null,null,null,null,null,null,null,null,null,null,null,null,{"$f":"SUM(PayrollSum[[#This Row],[Salaries2]:[MapColumn10Addition]])","v":0},null,null,null,null,null,null,null,null,null,null,null,null,null,null,{"$f":"SUM(PayrollSum[[#This Row],[MapColumn1Deduction]:[PhicContributionEE]])","v":0},{"$f":"+PayrollSum[[#This Row],[GCI]]-PayrollSum[[#This Row],[TotalDeduction]]","v":0},null,null,null,null,{"$f":"SUM(PayrollSum[[#This Row],[SssContributionER]:[PhicContributionER]])","v":0},null,null,null,null,{"$f":"SUM(PayrollSum[[#This Row],[DeMinimisBenefit]:[OtherNonTaxableIncome]])","v":0},null,null,null,null,null,null,null,null,null,null,null,null,null,null,null,null,null,null,null,null,null,null,null,null,null,null,null,null,null,null,null,null,null,null,null,null,null,null,null,null,null,null,null,null,null,null,null,null,null,null,null,null,null,null,null,null,null,null,null,null,null,null,null,null,null,null,null,null,null,null,null,null,null,"Y"]
[null,null,null,null,null,null,null,null,null,null,null,{"$f":"SUM(PayrollSum[[#This Row],[BasicPay]:[NightShiftDifferential]])-PayrollSum[[#This Row],[LatesAndAbsences]]","v":0},null,null,null,null,null,null,null,null,null,null,null,null,null,null,null,null,null,null,{"$f":"SUM(PayrollSum[[#This Row],[Salaries2]:[MapColumn10Addition]])","v":0},null,null,null,null,null,null,null,null,null,null,null,null,null,null,{"$f":"SUM(PayrollSum[[#This Row],[MapColumn1Deduction]:[PhicContributionEE]])","v":0},{"$f":"+PayrollSum[[#This Row],[GCI]]-PayrollSum[[#This Row],[TotalDeduction]]","v":0},null,null,null,null,{"$f":"SUM(PayrollSum[[#This Row],[SssContributionER]:[PhicContributionER]])","v":0},null,null,null,null,{"$f":"SUM(PayrollSum[[#This Row],[DeMinimisBenefit]:[OtherNonTaxableIncome]])","v":0},null,null,null,null,null,null,null,null,null,null,null,null,null,null,null,null,null,null,null,null,null,null,null,null,null,null,null,null,null,null,null,null,null,null,null,null,null,null,null,null,null,null,null,null,null,null,null,null,null,null,null,null,null,null,null,null,null,null,null,null,null,null,null,null,null,null,null,null,null,null,null,null,null,"Y"]
[null,null,null,null,null,null,null,null,null,null,null,{"$f":"SUM(PayrollSum[[#This Row],[BasicPay]:[NightShiftDifferential]])-PayrollSum[[#This Row],[LatesAndAbsences]]","v":0},null,null,null,null,null,null,null,null,null,null,null,null,null,null,null,null,null,null,{"$f":"SUM(PayrollSum[[#This Row],[Salaries2]:[MapColumn10Addition]])","v":0},null,null,null,null,null,null,null,null,null,null,null,null,null,null,{"$f":"SUM(PayrollSum[[#This Row],[MapColumn1Deduction]:[PhicContributionEE]])","v":0},{"$f":"+PayrollSum[[#This Row],[GCI]]-PayrollSum[[#This Row],[TotalDeduction]]","v":0},null,null,null,null,{"$f":"SUM(PayrollSum[[#This Row],[SssContributionER]:[PhicContributionER]])","v":0},null,null,null,null,{"$f":"SUM(PayrollSum[[#This Row],[DeMinimisBenefit]:[OtherNonTaxableIncome]])","v":0},null,null,null,null,null,null,null,null,null,null,null,null,null,null,null,null,null,null,null,null,null,null,null,null,null,null,null,null,null,null,null,null,null,null,null,null,null,null,null,null,null,null,null,null,null,null,null,null,null,null,null,null,null,null,null,null,null,null,null,null,null,null,null,null,null,null,null,null,null,null,null,null,null,"Y"]
[null,null,null,null,null,null,null,null,null,null,null,{"$f":"SUM(PayrollSum[[#This Row],[BasicPay]:[NightShiftDifferential]])-PayrollSum[[#This Row],[LatesAndAbsences]]","v":0},null,null,null,null,null,null,null,null,null,null,null,null,null,null,null,null,null,null,{"$f":"SUM(PayrollSum[[#This Row],[Salaries2]:[MapColumn10Addition]])","v":0},null,null,null,null,null,null,null,null,null,null,null,null,null,null,{"$f":"SUM(PayrollSum[[#This Row],[MapColumn1Deduction]:[PhicContributionEE]])","v":0},{"$f":"+PayrollSum[[#This Row],[GCI]]-PayrollSum[[#This Row],[TotalDeduction]]","v":0},null,null,null,null,{"$f":"SUM(PayrollSum[[#This Row],[SssContributionER]:[PhicContributionER]])","v":0},null,null,null,null,{"$f":"SUM(PayrollSum[[#This Row],[DeMinimisBenefit]:[OtherNonTaxableIncome]])","v":0},null,null,null,null,null,null,null,null,null,null,null,null,null,null,null,null,null,null,null,null,null,null,null,null,null,null,null,null,null,null,null,null,null,null,null,null,null,null,null,null,null,null,null,null,null,null,null,null,null,null,null,null,null,null,null,null,null,null,null,null,null,null,null,null,null,null,null,null,null,null,null,null,null,"Y"]
[null,null,null,null,null,null,null,null,null,null,null,{"$f":"SUM(PayrollSum[[#This Row],[BasicPay]:[NightShiftDifferential]])-PayrollSum[[#This Row],[LatesAndAbsences]]","v":0},null,null,null,null,null,null,null,null,null,null,null,null,null,null,null,null,null,null,{"$f":"SUM(PayrollSum[[#This Row],[Salaries2]:[MapColumn10Addition]])","v":0},null,null,null,null,null,null,null,null,null,null,null,null,null,null,{"$f":"SUM(PayrollSum[[#This Row],[MapColumn1Deduction]:[PhicContributionEE]])","v":0},{"$f":"+PayrollSum[[#This Row],[GCI]]-PayrollSum[[#This Row],[TotalDeduction]]","v":0},null,null,null,null,{"$f":"SUM(PayrollSum[[#This Row],[SssContributionER]:[PhicContributionER]])","v":0},null,null,null,null,{"$f":"SUM(PayrollSum[[#This Row],[DeMinimisBenefit]:[OtherNonTaxableIncome]])","v":0},null,null,null,null,null,null,null,null,null,null,null,null,null,null,null,null,null,null,null,null,null,null,null,null,null,null,null,null,null,null,null,null,null,null,null,null,null,null,null,null,null,null,null,null,null,null,null,null,null,null,null,null,null,null,null,null,null,null,null,null,null,null,null,null,null,null,null,null,null,null,null,null,null,"Y"]
[null,null,null,null,null,null,null,null,null,null,null,{"$f":"SUM(PayrollSum[[#This Row],[BasicPay]:[NightShiftDifferential]])-PayrollSum[[#This Row],[LatesAndAbsences]]","v":0},null,null,null,null,null,null,null,null,null,null,null,null,null,null,null,null,null,null,{"$f":"SUM(PayrollSum[[#This Row],[Salaries2]:[MapColumn10Addition]])","v":0},null,null,null,null,null,null,null,null,null,null,null,null,null,null,{"$f":"SUM(PayrollSum[[#This Row],[MapColumn1Deduction]:[PhicContributionEE]])","v":0},{"$f":"+PayrollSum[[#This Row],[GCI]]-PayrollSum[[#This Row],[TotalDeduction]]","v":0},null,null,null,null,{"$f":"SUM(PayrollSum[[#This Row],[SssContributionER]:[PhicContributionER]])","v":0},null,null,null,null,{"$f":"SUM(PayrollSum[[#This Row],[DeMinimisBenefit]:[OtherNonTaxableIncome]])","v":0},null,null,null,null,null,null,null,null,null,null,null,null,null,null,null,null,null,null,null,null,null,null,null,null,null,null,null,null,null,null,null,null,null,null,null,null,null,null,null,null,null,null,null,null,null,null,null,null,null,null,null,null,null,null,null,null,null,null,null,null,null,null,null,null,null,null,null,null,null,null,null,null,null,"Y"]
[null,null,null,null,null,null,null,null,null,null,null,{"$f":"SUM(PayrollSum[[#This Row],[BasicPay]:[NightShiftDifferential]])-PayrollSum[[#This Row],[LatesAndAbsences]]","v":0},null,null,null,null,null,null,null,null,null,null,null,null,null,null,null,null,null,null,{"$f":"SUM(PayrollSum[[#This Row],[Salaries2]:[MapColumn10Addition]])","v":0},null,null,null,null,null,null,null,null,null,null,null,null,null,null,{"$f":"SUM(PayrollSum[[#This Row],[MapColumn1Deduction]:[PhicContributionEE]])","v":0},{"$f":"+PayrollSum[[#This Row],[GCI]]-PayrollSum[[#This Row],[TotalDeduction]]","v":0},null,null,null,null,{"$f":"SUM(PayrollSum[[#This Row],[SssContributionER]:[PhicContributionER]])","v":0},null,null,null,null,{"$f":"SUM(PayrollSum[[#This Row],[DeMinimisBenefit]:[OtherNonTaxableIncome]])","v":0},null,null,null,null,null,null,null,null,null,null,null,null,null,null,null,null,null,null,null,null,null,null,null,null,null,null,null,null,null,null,null,null,null,null,null,null,null,null,null,null,null,null,null,null,null,null,null,null,null,null,null,null,null,null,null,null,null,null,null,null,null,null,null,null,null,null,null,null,null,null,null,null,null,"Y"]
[null,null,null,null,null,null,null,null,null,null,null,{"$f":"SUM(PayrollSum[[#This Row],[BasicPay]:[NightShiftDifferential]])-PayrollSum[[#This Row],[LatesAndAbsences]]","v":0},null,null,null,null,null,null,null,null,null,null,null,null,null,null,null,null,null,null,{"$f":"SUM(PayrollSum[[#This Row],[Salaries2]:[MapColumn10Addition]])","v":0},null,null,null,null,null,null,null,null,null,null,null,null,null,null,{"$f":"SUM(PayrollSum[[#This Row],[MapColumn1Deduction]:[PhicContributionEE]])","v":0},{"$f":"+PayrollSum[[#This Row],[GCI]]-PayrollSum[[#This Row],[TotalDeduction]]","v":0},null,null,null,null,{"$f":"SUM(PayrollSum[[#This Row],[SssContributionER]:[PhicContributionER]])","v":0},null,null,null,null,{"$f":"SUM(PayrollSum[[#This Row],[DeMinimisBenefit]:[OtherNonTaxableIncome]])","v":0},null,null,null,null,null,null,null,null,null,null,null,null,null,null,null,null,null,null,null,null,null,null,null,null,null,null,null,null,null,null,null,null,null,null,null,null,null,null,null,null,null,null,null,null,null,null,null,null,null,null,null,null,null,null,null,null,null,null,null,null,null,null,null,null,null,null,null,null,null,null,null,null,null,"Y"]
[null,null,null,null,null,null,null,null,null,null,null,{"$f":"SUM(PayrollSum[[#This Row],[BasicPay]:[NightShiftDifferential]])-PayrollSum[[#This Row],[LatesAndAbsences]]","v":0},null,null,null,null,null,null,null,null,null,null,null,null,null,null,null,null,null,null,{"$f":"SUM(PayrollSum[[#This Row],[Salaries2]:[MapColumn10Addition]])","v":0},null,null,null,null,null,null,null,null,null,null,null,null,null,null,{"$f":"SUM(PayrollSum[[#This Row],[MapColumn1Deduction]:[PhicContributionEE]])","v":0},{"$f":"+PayrollSum[[#This Row],[GCI]]-PayrollSum[[#This Row],[TotalDeduction]]","v":0},null,null,null,null,{"$f":"SUM(PayrollSum[[#This Row],[SssContributionER]:[PhicContributionER]])","v":0},null,null,null,null,{"$f":"SUM(PayrollSum[[#This Row],[DeMinimisBenefit]:[OtherNonTaxableIncome]])","v":0},null,null,null,null,null,null,null,null,null,null,null,null,null,null,null,null,null,null,null,null,null,null,null,null,null,null,null,null,null,null,null,null,null,null,null,null,null,null,null,null,null,null,null,null,null,null,null,null,null,null,null,null,null,null,null,null,null,null,null,null,null,null,null,null,null,null,null,null,null,null,null,null,null,"Y"]
[null,null,null,null,null,null,null,null,null,null,null,{"$f":"SUM(PayrollSum[[#This Row],[BasicPay]:[NightShiftDifferential]])-PayrollSum[[#This Row],[LatesAndAbsences]]","v":0},null,null,null,null,null,null,null,null,null,null,null,null,null,null,null,null,null,null,{"$f":"SUM(PayrollSum[[#This Row],[Salaries2]:[MapColumn10Addition]])","v":0},null,null,null,null,null,null,null,null,null,null,null,null,null,null,{"$f":"SUM(PayrollSum[[#This Row],[MapColumn1Deduction]:[PhicContributionEE]])","v":0},{"$f":"+PayrollSum[[#This Row],[GCI]]-PayrollSum[[#This Row],[TotalDeduction]]","v":0},null,null,null,null,{"$f":"SUM(PayrollSum[[#This Row],[SssContributionER]:[PhicContributionER]])","v":0},null,null,null,null,{"$f":"SUM(PayrollSum[[#This Row],[DeMinimisBenefit]:[OtherNonTaxableIncome]])","v":0},null,null,null,null,null,null,null,null,null,null,null,null,null,null,null,null,null,null,null,null,null,null,null,null,null,null,null,null,null,null,null,null,null,null,null,null,null,null,null,null,null,null,null,null,null,null,null,null,null,null,null,null,null,null,null,null,null,null,null,null,null,null,null,null,null,null,null,null,null,null,null,null,null,"Y"]
[null,null,null,null,null,null,null,null,null,null,null,{"$f":"SUM(PayrollSum[[#This Row],[BasicPay]:[NightShiftDifferential]])-PayrollSum[[#This Row],[LatesAndAbsences]]","v":0},null,null,null,null,null,null,null,null,null,null,null,null,null,null,null,null,null,null,{"$f":"SUM(PayrollSum[[#This Row],[Salaries2]:[MapColumn10Addition]])","v":0},null,null,null,null,null,null,null,null,null,null,null,null,null,null,{"$f":"SUM(PayrollSum[[#This Row],[MapColumn1Deduction]:[PhicContributionEE]])","v":0},{"$f":"+PayrollSum[[#This Row],[GCI]]-PayrollSum[[#This Row],[TotalDeduction]]","v":0},null,null,null,null,{"$f":"SUM(PayrollSum[[#This Row],[SssContributionER]:[PhicContributionER]])","v":0},null,null,null,null,{"$f":"SUM(PayrollSum[[#This Row],[DeMinimisBenefit]:[OtherNonTaxableIncome]])","v":0},null,null,null,null,null,null,null,null,null,null,null,null,null,null,null,null,null,null,null,null,null,null,null,null,null,null,null,null,null,null,null,null,null,null,null,null,null,null,null,null,null,null,null,null,null,null,null,null,null,null,null,null,null,null,null,null,null,null,null,null,null,null,null,null,null,null,null,null,null,null,null,null,null,"Y"]
[null,null,null,null,null,null,null,null,null,null,null,{"$f":"SUM(PayrollSum[[#This Row],[BasicPay]:[NightShiftDifferential]])-PayrollSum[[#This Row],[LatesAndAbsences]]","v":0},null,null,null,null,null,null,null,null,null,null,null,null,null,null,null,null,null,null,{"$f":"SUM(PayrollSum[[#This Row],[Salaries2]:[MapColumn10Addition]])","v":0},null,null,null,null,null,null,null,null,null,null,null,null,null,null,{"$f":"SUM(PayrollSum[[#This Row],[MapColumn1Deduction]:[PhicContributionEE]])","v":0},{"$f":"+PayrollSum[[#This Row],[GCI]]-PayrollSum[[#This Row],[TotalDeduction]]","v":0},null,null,null,null,{"$f":"SUM(PayrollSum[[#This Row],[SssContributionER]:[PhicContributionER]])","v":0},null,null,null,null,{"$f":"SUM(PayrollSum[[#This Row],[DeMinimisBenefit]:[OtherNonTaxableIncome]])","v":0},null,null,null,null,null,null,null,null,null,null,null,null,null,null,null,null,null,null,null,null,null,null,null,null,null,null,null,null,null,null,null,null,null,null,null,null,null,null,null,null,null,null,null,null,null,null,null,null,null,null,null,null,null,null,null,null,null,null,null,null,null,null,null,null,null,null,null,null,null,null,null,null,null,"Y"]
[null,null,null,null,null,null,null,null,null,null,null,{"$f":"SUM(PayrollSum[[#This Row],[BasicPay]:[NightShiftDifferential]])-PayrollSum[[#This Row],[LatesAndAbsences]]","v":0},null,null,null,null,null,null,null,null,null,null,null,null,null,null,null,null,null,null,{"$f":"SUM(PayrollSum[[#This Row],[Salaries2]:[MapColumn10Addition]])","v":0},null,null,null,null,null,null,null,null,null,null,null,null,null,null,{"$f":"SUM(PayrollSum[[#This Row],[MapColumn1Deduction]:[PhicContributionEE]])","v":0},{"$f":"+PayrollSum[[#This Row],[GCI]]-PayrollSum[[#This Row],[TotalDeduction]]","v":0},null,null,null,null,{"$f":"SUM(PayrollSum[[#This Row],[SssContributionER]:[PhicContributionER]])","v":0},null,null,null,null,{"$f":"SUM(PayrollSum[[#This Row],[DeMinimisBenefit]:[OtherNonTaxableIncome]])","v":0},null,null,null,null,null,null,null,null,null,null,null,null,null,null,null,null,null,null,null,null,null,null,null,null,null,null,null,null,null,null,null,null,null,null,null,null,null,null,null,null,null,null,null,null,null,null,null,null,null,null,null,null,null,null,null,null,null,null,null,null,null,null,null,null,null,null,null,null,null,null,null,null,null,"Y"]
[null,null,null,null,null,null,null,null,null,null,null,{"$f":"SUM(PayrollSum[[#This Row],[BasicPay]:[NightShiftDifferential]])-PayrollSum[[#This Row],[LatesAndAbsences]]","v":0},null,null,null,null,null,null,null,null,null,null,null,null,null,null,null,null,null,null,{"$f":"SUM(PayrollSum[[#This Row],[Salaries2]:[MapColumn10Addition]])","v":0},null,null,null,null,null,null,null,null,null,null,null,null,null,null,{"$f":"SUM(PayrollSum[[#This Row],[MapColumn1Deduction]:[PhicContributionEE]])","v":0},{"$f":"+PayrollSum[[#This Row],[GCI]]-PayrollSum[[#This Row],[TotalDeduction]]","v":0},null,null,null,null,{"$f":"SUM(PayrollSum[[#This Row],[SssContributionER]:[PhicContributionER]])","v":0},null,null,null,null,{"$f":"SUM(PayrollSum[[#This Row],[DeMinimisBenefit]:[OtherNonTaxableIncome]])","v":0},null,null,null,null,null,null,null,null,null,null,null,null,null,null,null,null,null,null,null,null,null,null,null,null,null,null,null,null,null,null,null,null,null,null,null,null,null,null,null,null,null,null,null,null,null,null,null,null,null,null,null,null,null,null,null,null,null,null,null,null,null,null,null,null,null,null,null,null,null,null,null,null,null,"Y"]
[null,null,null,null,null,null,null,null,null,null,null,{"$f":"SUM(PayrollSum[[#This Row],[BasicPay]:[NightShiftDifferential]])-PayrollSum[[#This Row],[LatesAndAbsences]]","v":0},null,null,null,null,null,null,null,null,null,null,null,null,null,null,null,null,null,null,{"$f":"SUM(PayrollSum[[#This Row],[Salaries2]:[MapColumn10Addition]])","v":0},null,null,null,null,null,null,null,null,null,null,null,null,null,null,{"$f":"SUM(PayrollSum[[#This Row],[MapColumn1Deduction]:[PhicContributionEE]])","v":0},{"$f":"+PayrollSum[[#This Row],[GCI]]-PayrollSum[[#This Row],[TotalDeduction]]","v":0},null,null,null,null,{"$f":"SUM(PayrollSum[[#This Row],[SssContributionER]:[PhicContributionER]])","v":0},null,null,null,null,{"$f":"SUM(PayrollSum[[#This Row],[DeMinimisBenefit]:[OtherNonTaxableIncome]])","v":0},null,null,null,null,null,null,null,null,null,null,null,null,null,null,null,null,null,null,null,null,null,null,null,null,null,null,null,null,null,null,null,null,null,null,null,null,null,null,null,null,null,null,null,null,null,null,null,null,null,null,null,null,null,null,null,null,null,null,null,null,null,null,null,null,null,null,null,null,null,null,null,null,null,"Y"]
[null,null,null,null,null,null,null,null,null,null,null,{"$f":"SUM(PayrollSum[[#This Row],[BasicPay]:[NightShiftDifferential]])-PayrollSum[[#This Row],[LatesAndAbsences]]","v":0},null,null,null,null,null,null,null,null,null,null,null,null,null,null,null,null,null,null,{"$f":"SUM(PayrollSum[[#This Row],[Salaries2]:[MapColumn10Addition]])","v":0},null,null,null,null,null,null,null,null,null,null,null,null,null,null,{"$f":"SUM(PayrollSum[[#This Row],[MapColumn1Deduction]:[PhicContributionEE]])","v":0},{"$f":"+PayrollSum[[#This Row],[GCI]]-PayrollSum[[#This Row],[TotalDeduction]]","v":0},null,null,null,null,{"$f":"SUM(PayrollSum[[#This Row],[SssContributionER]:[PhicContributionER]])","v":0},null,null,null,null,{"$f":"SUM(PayrollSum[[#This Row],[DeMinimisBenefit]:[OtherNonTaxableIncome]])","v":0},null,null,null,null,null,null,null,null,null,null,null,null,null,null,null,null,null,null,null,null,null,null,null,null,null,null,null,null,null,null,null,null,null,null,null,null,null,null,null,null,null,null,null,null,null,null,null,null,null,null,null,null,null,null,null,null,null,null,null,null,null,null,null,null,null,null,null,null,null,null,null,null,null,"Y"]
[null,null,null,null,null,null,null,null,null,null,null,{"$f":"SUM(PayrollSum[[#This Row],[BasicPay]:[NightShiftDifferential]])-PayrollSum[[#This Row],[LatesAndAbsences]]","v":0},null,null,null,null,null,null,null,null,null,null,null,null,null,null,null,null,null,null,{"$f":"SUM(PayrollSum[[#This Row],[Salaries2]:[MapColumn10Addition]])","v":0},null,null,null,null,null,null,null,null,null,null,null,null,null,null,{"$f":"SUM(PayrollSum[[#This Row],[MapColumn1Deduction]:[PhicContributionEE]])","v":0},{"$f":"+PayrollSum[[#This Row],[GCI]]-PayrollSum[[#This Row],[TotalDeduction]]","v":0},null,null,null,null,{"$f":"SUM(PayrollSum[[#This Row],[SssContributionER]:[PhicContributionER]])","v":0},null,null,null,null,{"$f":"SUM(PayrollSum[[#This Row],[DeMinimisBenefit]:[OtherNonTaxableIncome]])","v":0},null,null,null,null,null,null,null,null,null,null,null,null,null,null,null,null,null,null,null,null,null,null,null,null,null,null,null,null,null,null,null,null,null,null,null,null,null,null,null,null,null,null,null,null,null,null,null,null,null,null,null,null,null,null,null,null,null,null,null,null,null,null,null,null,null,null,null,null,null,null,null,null,null,"Y"]
[null,null,null,null,null,null,null,null,null,null,null,{"$f":"SUM(PayrollSum[[#This Row],[BasicPay]:[NightShiftDifferential]])-PayrollSum[[#This Row],[LatesAndAbsences]]","v":0},null,null,null,null,null,null,null,null,null,null,null,null,null,null,null,null,null,null,{"$f":"SUM(PayrollSum[[#This Row],[Salaries2]:[MapColumn10Addition]])","v":0},null,null,null,null,null,null,null,null,null,null,null,null,null,null,{"$f":"SUM(PayrollSum[[#This Row],[MapColumn1Deduction]:[PhicContributionEE]])","v":0},{"$f":"+PayrollSum[[#This Row],[GCI]]-PayrollSum[[#This Row],[TotalDeduction]]","v":0},null,null,null,null,{"$f":"SUM(PayrollSum[[#This Row],[SssContributionER]:[PhicContributionER]])","v":0},null,null,null,null,{"$f":"SUM(PayrollSum[[#This Row],[DeMinimisBenefit]:[OtherNonTaxableIncome]])","v":0},null,null,null,null,null,null,null,null,null,null,null,null,null,null,null,null,null,null,null,null,null,null,null,null,null,null,null,null,null,null,null,null,null,null,null,null,null,null,null,null,null,null,null,null,null,null,null,null,null,null,null,null,null,null,null,null,null,null,null,null,null,null,null,null,null,null,null,null,null,null,null,null,null,"Y"]
[null,null,null,null,null,null,null,null,null,null,null,{"$f":"SUM(PayrollSum[[#This Row],[BasicPay]:[NightShiftDifferential]])-PayrollSum[[#This Row],[LatesAndAbsences]]","v":0},null,null,null,null,null,null,null,null,null,null,null,null,null,null,null,null,null,null,{"$f":"SUM(PayrollSum[[#This Row],[Salaries2]:[MapColumn10Addition]])","v":0},null,null,null,null,null,null,null,null,null,null,null,null,null,null,{"$f":"SUM(PayrollSum[[#This Row],[MapColumn1Deduction]:[PhicContributionEE]])","v":0},{"$f":"+PayrollSum[[#This Row],[GCI]]-PayrollSum[[#This Row],[TotalDeduction]]","v":0},null,null,null,null,{"$f":"SUM(PayrollSum[[#This Row],[SssContributionER]:[PhicContributionER]])","v":0},null,null,null,null,{"$f":"SUM(PayrollSum[[#This Row],[DeMinimisBenefit]:[OtherNonTaxableIncome]])","v":0},null,null,null,null,null,null,null,null,null,null,null,null,null,null,null,null,null,null,null,null,null,null,null,null,null,null,null,null,null,null,null,null,null,null,null,null,null,null,null,null,null,null,null,null,null,null,null,null,null,null,null,null,null,null,null,null,null,null,null,null,null,null,null,null,null,null,null,null,null,null,null,null,null,"Y"]
[null,null,null,null,null,null,null,null,null,null,null,{"$f":"SUM(PayrollSum[[#This Row],[BasicPay]:[NightShiftDifferential]])-PayrollSum[[#This Row],[LatesAndAbsences]]","v":0},null,null,null,null,null,null,null,null,null,null,null,null,null,null,null,null,null,null,{"$f":"SUM(PayrollSum[[#This Row],[Salaries2]:[MapColumn10Addition]])","v":0},null,null,null,null,null,null,null,null,null,null,null,null,null,null,{"$f":"SUM(PayrollSum[[#This Row],[MapColumn1Deduction]:[PhicContributionEE]])","v":0},{"$f":"+PayrollSum[[#This Row],[GCI]]-PayrollSum[[#This Row],[TotalDeduction]]","v":0},null,null,null,null,{"$f":"SUM(PayrollSum[[#This Row],[SssContributionER]:[PhicContributionER]])","v":0},null,null,null,null,{"$f":"SUM(PayrollSum[[#This Row],[DeMinimisBenefit]:[OtherNonTaxableIncome]])","v":0},null,null,null,null,null,null,null,null,null,null,null,null,null,null,null,null,null,null,null,null,null,null,null,null,null,null,null,null,null,null,null,null,null,null,null,null,null,null,null,null,null,null,null,null,null,null,null,null,null,null,null,null,null,null,null,null,null,null,null,null,null,null,null,null,null,null,null,null,null,null,null,null,null,"Y"]
[null,null,null,null,null,null,null,null,null,null,null,{"$f":"SUM(PayrollSum[[#This Row],[BasicPay]:[NightShiftDifferential]])-PayrollSum[[#This Row],[LatesAndAbsences]]","v":0},null,null,null,null,null,null,null,null,null,null,null,null,null,null,null,null,null,null,{"$f":"SUM(PayrollSum[[#This Row],[Salaries2]:[MapColumn10Addition]])","v":0},null,null,null,null,null,null,null,null,null,null,null,null,null,null,{"$f":"SUM(PayrollSum[[#This Row],[MapColumn1Deduction]:[PhicContributionEE]])","v":0},{"$f":"+PayrollSum[[#This Row],[GCI]]-PayrollSum[[#This Row],[TotalDeduction]]","v":0},null,null,null,null,{"$f":"SUM(PayrollSum[[#This Row],[SssContributionER]:[PhicContributionER]])","v":0},null,null,null,null,{"$f":"SUM(PayrollSum[[#This Row],[DeMinimisBenefit]:[OtherNonTaxableIncome]])","v":0},null,null,null,null,null,null,null,null,null,null,null,null,null,null,null,null,null,null,null,null,null,null,null,null,null,null,null,null,null,null,null,null,null,null,null,null,null,null,null,null,null,null,null,null,null,null,null,null,null,null,null,null,null,null,null,null,null,null,null,null,null,null,null,null,null,null,null,null,null,null,null,null,null,"Y"]
[null,null,null,null,null,null,null,null,null,null,null,{"$f":"SUM(PayrollSum[[#This Row],[BasicPay]:[NightShiftDifferential]])-PayrollSum[[#This Row],[LatesAndAbsences]]","v":0},null,null,null,null,null,null,null,null,null,null,null,null,null,null,null,null,null,null,{"$f":"SUM(PayrollSum[[#This Row],[Salaries2]:[MapColumn10Addition]])","v":0},null,null,null,null,null,null,null,null,null,null,null,null,null,null,{"$f":"SUM(PayrollSum[[#This Row],[MapColumn1Deduction]:[PhicContributionEE]])","v":0},{"$f":"+PayrollSum[[#This Row],[GCI]]-PayrollSum[[#This Row],[TotalDeduction]]","v":0},null,null,null,null,{"$f":"SUM(PayrollSum[[#This Row],[SssContributionER]:[PhicContributionER]])","v":0},null,null,null,null,{"$f":"SUM(PayrollSum[[#This Row],[DeMinimisBenefit]:[OtherNonTaxableIncome]])","v":0},null,null,null,null,null,null,null,null,null,null,null,null,null,null,null,null,null,null,null,null,null,null,null,null,null,null,null,null,null,null,null,null,null,null,null,null,null,null,null,null,null,null,null,null,null,null,null,null,null,null,null,null,null,null,null,null,null,null,null,null,null,null,null,null,null,null,null,null,null,null,null,null,null,"Y"]
[null,null,null,null,null,null,null,null,null,null,null,{"$f":"SUM(PayrollSum[[#This Row],[BasicPay]:[NightShiftDifferential]])-PayrollSum[[#This Row],[LatesAndAbsences]]","v":0},null,null,null,null,null,null,null,null,null,null,null,null,null,null,null,null,null,null,{"$f":"SUM(PayrollSum[[#This Row],[Salaries2]:[MapColumn10Addition]])","v":0},null,null,null,null,null,null,null,null,null,null,null,null,null,null,{"$f":"SUM(PayrollSum[[#This Row],[MapColumn1Deduction]:[PhicContributionEE]])","v":0},{"$f":"+PayrollSum[[#This Row],[GCI]]-PayrollSum[[#This Row],[TotalDeduction]]","v":0},null,null,null,null,{"$f":"SUM(PayrollSum[[#This Row],[SssContributionER]:[PhicContributionER]])","v":0},null,null,null,null,{"$f":"SUM(PayrollSum[[#This Row],[DeMinimisBenefit]:[OtherNonTaxableIncome]])","v":0},null,null,null,null,null,null,null,null,null,null,null,null,null,null,null,null,null,null,null,null,null,null,null,null,null,null,null,null,null,null,null,null,null,null,null,null,null,null,null,null,null,null,null,null,null,null,null,null,null,null,null,null,null,null,null,null,null,null,null,null,null,null,null,null,null,null,null,null,null,null,null,null,null,"Y"]
[null,null,null,null,null,null,null,null,null,null,null,{"$f":"SUM(PayrollSum[[#This Row],[BasicPay]:[NightShiftDifferential]])-PayrollSum[[#This Row],[LatesAndAbsences]]","v":0},null,null,null,null,null,null,null,null,null,null,null,null,null,null,null,null,null,null,{"$f":"SUM(PayrollSum[[#This Row],[Salaries2]:[MapColumn10Addition]])","v":0},null,null,null,null,null,null,null,null,null,null,null,null,null,null,{"$f":"SUM(PayrollSum[[#This Row],[MapColumn1Deduction]:[PhicContributionEE]])","v":0},{"$f":"+PayrollSum[[#This Row],[GCI]]-PayrollSum[[#This Row],[TotalDeduction]]","v":0},null,null,null,null,{"$f":"SUM(PayrollSum[[#This Row],[SssContributionER]:[PhicContributionER]])","v":0},null,null,null,null,{"$f":"SUM(PayrollSum[[#This Row],[DeMinimisBenefit]:[OtherNonTaxableIncome]])","v":0},null,null,null,null,null,null,null,null,null,null,null,null,null,null,null,null,null,null,null,null,null,null,null,null,null,null,null,null,null,null,null,null,null,null,null,null,null,null,null,null,null,null,null,null,null,null,null,null,null,null,null,null,null,null,null,null,null,null,null,null,null,null,null,null,null,null,null,null,null,null,null,null,null,"Y"]
[null,null,null,null,null,null,null,null,null,null,null,{"$f":"SUM(PayrollSum[[#This Row],[BasicPay]:[NightShiftDifferential]])-PayrollSum[[#This Row],[LatesAndAbsences]]","v":0},null,null,null,null,null,null,null,null,null,null,null,null,null,null,null,null,null,null,{"$f":"SUM(PayrollSum[[#This Row],[Salaries2]:[MapColumn10Addition]])","v":0},null,null,null,null,null,null,null,null,null,null,null,null,null,null,{"$f":"SUM(PayrollSum[[#This Row],[MapColumn1Deduction]:[PhicContributionEE]])","v":0},{"$f":"+PayrollSum[[#This Row],[GCI]]-PayrollSum[[#This Row],[TotalDeduction]]","v":0},null,null,null,null,{"$f":"SUM(PayrollSum[[#This Row],[SssContributionER]:[PhicContributionER]])","v":0},null,null,null,null,{"$f":"SUM(PayrollSum[[#This Row],[DeMinimisBenefit]:[OtherNonTaxableIncome]])","v":0},null,null,null,null,null,null,null,null,null,null,null,null,null,null,null,null,null,null,null,null,null,null,null,null,null,null,null,null,null,null,null,null,null,null,null,null,null,null,null,null,null,null,null,null,null,null,null,null,null,null,null,null,null,null,null,null,null,null,null,null,null,null,null,null,null,null,null,null,null,null,null,null,null,"Y"]
[null,null,null,null,null,null,null,null,null,null,null,{"$f":"SUM(PayrollSum[[#This Row],[BasicPay]:[NightShiftDifferential]])-PayrollSum[[#This Row],[LatesAndAbsences]]","v":0},null,null,null,null,null,null,null,null,null,null,null,null,null,null,null,null,null,null,{"$f":"SUM(PayrollSum[[#This Row],[Salaries2]:[MapColumn10Addition]])","v":0},null,null,null,null,null,null,null,null,null,null,null,null,null,null,{"$f":"SUM(PayrollSum[[#This Row],[MapColumn1Deduction]:[PhicContributionEE]])","v":0},{"$f":"+PayrollSum[[#This Row],[GCI]]-PayrollSum[[#This Row],[TotalDeduction]]","v":0},null,null,null,null,{"$f":"SUM(PayrollSum[[#This Row],[SssContributionER]:[PhicContributionER]])","v":0},null,null,null,null,{"$f":"SUM(PayrollSum[[#This Row],[DeMinimisBenefit]:[OtherNonTaxableIncome]])","v":0},null,null,null,null,null,null,null,null,null,null,null,null,null,null,null,null,null,null,null,null,null,null,null,null,null,null,null,null,null,null,null,null,null,null,null,null,null,null,null,null,null,null,null,null,null,null,null,null,null,null,null,null,null,null,null,null,null,null,null,null,null,null,null,null,null,null,null,null,null,null,null,null,null,"Y"]
[null,null,null,null,null,null,null,null,null,null,null,{"$f":"SUM(PayrollSum[[#This Row],[BasicPay]:[NightShiftDifferential]])-PayrollSum[[#This Row],[LatesAndAbsences]]","v":0},null,null,null,null,null,null,null,null,null,null,null,null,null,null,null,null,null,null,{"$f":"SUM(PayrollSum[[#This Row],[Salaries2]:[MapColumn10Addition]])","v":0},null,null,null,null,null,null,null,null,null,null,null,null,null,null,{"$f":"SUM(PayrollSum[[#This Row],[MapColumn1Deduction]:[PhicContributionEE]])","v":0},{"$f":"+PayrollSum[[#This Row],[GCI]]-PayrollSum[[#This Row],[TotalDeduction]]","v":0},null,null,null,null,{"$f":"SUM(PayrollSum[[#This Row],[SssContributionER]:[PhicContributionER]])","v":0},null,null,null,null,{"$f":"SUM(PayrollSum[[#This Row],[DeMinimisBenefit]:[OtherNonTaxableIncome]])","v":0},null,null,null,null,null,null,null,null,null,null,null,null,null,null,null,null,null,null,null,null,null,null,null,null,null,null,null,null,null,null,null,null,null,null,null,null,null,null,null,null,null,null,null,null,null,null,null,null,null,null,null,null,null,null,null,null,null,null,null,null,null,null,null,null,null,null,null,null,null,null,null,null,null,"Y"]
[null,null,null,null,null,null,null,null,null,null,null,{"$f":"SUM(PayrollSum[[#This Row],[BasicPay]:[NightShiftDifferential]])-PayrollSum[[#This Row],[LatesAndAbsences]]","v":0},null,null,null,null,null,null,null,null,null,null,null,null,null,null,null,null,null,null,{"$f":"SUM(PayrollSum[[#This Row],[Salaries2]:[MapColumn10Addition]])","v":0},null,null,null,null,null,null,null,null,null,null,null,null,null,null,{"$f":"SUM(PayrollSum[[#This Row],[MapColumn1Deduction]:[PhicContributionEE]])","v":0},{"$f":"+PayrollSum[[#This Row],[GCI]]-PayrollSum[[#This Row],[TotalDeduction]]","v":0},null,null,null,null,{"$f":"SUM(PayrollSum[[#This Row],[SssContributionER]:[PhicContributionER]])","v":0},null,null,null,null,{"$f":"SUM(PayrollSum[[#This Row],[DeMinimisBenefit]:[OtherNonTaxableIncome]])","v":0},null,null,null,null,null,null,null,null,null,null,null,null,null,null,null,null,null,null,null,null,null,null,null,null,null,null,null,null,null,null,null,null,null,null,null,null,null,null,null,null,null,null,null,null,null,null,null,null,null,null,null,null,null,null,null,null,null,null,null,null,null,null,null,null,null,null,null,null,null,null,null,null,null,"Y"]
[null,null,null,null,null,null,null,null,null,null,null,{"$f":"SUM(PayrollSum[[#This Row],[BasicPay]:[NightShiftDifferential]])-PayrollSum[[#This Row],[LatesAndAbsences]]","v":0},null,null,null,null,null,null,null,null,null,null,null,null,null,null,null,null,null,null,{"$f":"SUM(PayrollSum[[#This Row],[Salaries2]:[MapColumn10Addition]])","v":0},null,null,null,null,null,null,null,null,null,null,null,null,null,null,{"$f":"SUM(PayrollSum[[#This Row],[MapColumn1Deduction]:[PhicContributionEE]])","v":0},{"$f":"+PayrollSum[[#This Row],[GCI]]-PayrollSum[[#This Row],[TotalDeduction]]","v":0},null,null,null,null,{"$f":"SUM(PayrollSum[[#This Row],[SssContributionER]:[PhicContributionER]])","v":0},null,null,null,null,{"$f":"SUM(PayrollSum[[#This Row],[DeMinimisBenefit]:[OtherNonTaxableIncome]])","v":0},null,null,null,null,null,null,null,null,null,null,null,null,null,null,null,null,null,null,null,null,null,null,null,null,null,null,null,null,null,null,null,null,null,null,null,null,null,null,null,null,null,null,null,null,null,null,null,null,null,null,null,null,null,null,null,null,null,null,null,null,null,null,null,null,null,null,null,null,null,null,null,null,null,"Y"]
[null,null,null,null,null,null,null,null,null,null,null,{"$f":"SUM(PayrollSum[[#This Row],[BasicPay]:[NightShiftDifferential]])-PayrollSum[[#This Row],[LatesAndAbsences]]","v":0},null,null,null,null,null,null,null,null,null,null,null,null,null,null,null,null,null,null,{"$f":"SUM(PayrollSum[[#This Row],[Salaries2]:[MapColumn10Addition]])","v":0},null,null,null,null,null,null,null,null,null,null,null,null,null,null,{"$f":"SUM(PayrollSum[[#This Row],[MapColumn1Deduction]:[PhicContributionEE]])","v":0},{"$f":"+PayrollSum[[#This Row],[GCI]]-PayrollSum[[#This Row],[TotalDeduction]]","v":0},null,null,null,null,{"$f":"SUM(PayrollSum[[#This Row],[SssContributionER]:[PhicContributionER]])","v":0},null,null,null,null,{"$f":"SUM(PayrollSum[[#This Row],[DeMinimisBenefit]:[OtherNonTaxableIncome]])","v":0},null,null,null,null,null,null,null,null,null,null,null,null,null,null,null,null,null,null,null,null,null,null,null,null,null,null,null,null,null,null,null,null,null,null,null,null,null,null,null,null,null,null,null,null,null,null,null,null,null,null,null,null,null,null,null,null,null,null,null,null,null,null,null,null,null,null,null,null,null,null,null,null,null,"Y"]
[null,null,null,null,null,null,null,null,null,null,null,{"$f":"SUM(PayrollSum[[#This Row],[BasicPay]:[NightShiftDifferential]])-PayrollSum[[#This Row],[LatesAndAbsences]]","v":0},null,null,null,null,null,null,null,null,null,null,null,null,null,null,null,null,null,null,{"$f":"SUM(PayrollSum[[#This Row],[Salaries2]:[MapColumn10Addition]])","v":0},null,null,null,null,null,null,null,null,null,null,null,null,null,null,{"$f":"SUM(PayrollSum[[#This Row],[MapColumn1Deduction]:[PhicContributionEE]])","v":0},{"$f":"+PayrollSum[[#This Row],[GCI]]-PayrollSum[[#This Row],[TotalDeduction]]","v":0},null,null,null,null,{"$f":"SUM(PayrollSum[[#This Row],[SssContributionER]:[PhicContributionER]])","v":0},null,null,null,null,{"$f":"SUM(PayrollSum[[#This Row],[DeMinimisBenefit]:[OtherNonTaxableIncome]])","v":0},null,null,null,null,null,null,null,null,null,null,null,null,null,null,null,null,null,null,null,null,null,null,null,null,null,null,null,null,null,null,null,null,null,null,null,null,null,null,null,null,null,null,null,null,null,null,null,null,null,null,null,null,null,null,null,null,null,null,null,null,null,null,null,null,null,null,null,null,null,null,null,null,null,"Y"]
[null,null,null,null,null,null,null,null,null,null,null,{"$f":"SUM(PayrollSum[[#This Row],[BasicPay]:[NightShiftDifferential]])-PayrollSum[[#This Row],[LatesAndAbsences]]","v":0},null,null,null,null,null,null,null,null,null,null,null,null,null,null,null,null,null,null,{"$f":"SUM(PayrollSum[[#This Row],[Salaries2]:[MapColumn10Addition]])","v":0},null,null,null,null,null,null,null,null,null,null,null,null,null,null,{"$f":"SUM(PayrollSum[[#This Row],[MapColumn1Deduction]:[PhicContributionEE]])","v":0},{"$f":"+PayrollSum[[#This Row],[GCI]]-PayrollSum[[#This Row],[TotalDeduction]]","v":0},null,null,null,null,{"$f":"SUM(PayrollSum[[#This Row],[SssContributionER]:[PhicContributionER]])","v":0},null,null,null,null,{"$f":"SUM(PayrollSum[[#This Row],[DeMinimisBenefit]:[OtherNonTaxableIncome]])","v":0},null,null,null,null,null,null,null,null,null,null,null,null,null,null,null,null,null,null,null,null,null,null,null,null,null,null,null,null,null,null,null,null,null,null,null,null,null,null,null,null,null,null,null,null,null,null,null,null,null,null,null,null,null,null,null,null,null,null,null,null,null,null,null,null,null,null,null,null,null,null,null,null,null,"Y"]
[null,null,null,null,null,null,null,null,null,null,null,{"$f":"SUM(PayrollSum[[#This Row],[BasicPay]:[NightShiftDifferential]])-PayrollSum[[#This Row],[LatesAndAbsences]]","v":0},null,null,null,null,null,null,null,null,null,null,null,null,null,null,null,null,null,null,{"$f":"SUM(PayrollSum[[#This Row],[Salaries2]:[MapColumn10Addition]])","v":0},null,null,null,null,null,null,null,null,null,null,null,null,null,null,{"$f":"SUM(PayrollSum[[#This Row],[MapColumn1Deduction]:[PhicContributionEE]])","v":0},{"$f":"+PayrollSum[[#This Row],[GCI]]-PayrollSum[[#This Row],[TotalDeduction]]","v":0},null,null,null,null,{"$f":"SUM(PayrollSum[[#This Row],[SssContributionER]:[PhicContributionER]])","v":0},null,null,null,null,{"$f":"SUM(PayrollSum[[#This Row],[DeMinimisBenefit]:[OtherNonTaxableIncome]])","v":0},null,null,null,null,null,null,null,null,null,null,null,null,null,null,null,null,null,null,null,null,null,null,null,null,null,null,null,null,null,null,null,null,null,null,null,null,null,null,null,null,null,null,null,null,null,null,null,null,null,null,null,null,null,null,null,null,null,null,null,null,null,null,null,null,null,null,null,null,null,null,null,null,null,"Y"]
[null,null,null,null,null,null,null,null,null,null,null,{"$f":"SUM(PayrollSum[[#This Row],[BasicPay]:[NightShiftDifferential]])-PayrollSum[[#This Row],[LatesAndAbsences]]","v":0},null,null,null,null,null,null,null,null,null,null,null,null,null,null,null,null,null,null,{"$f":"SUM(PayrollSum[[#This Row],[Salaries2]:[MapColumn10Addition]])","v":0},null,null,null,null,null,null,null,null,null,null,null,null,null,null,{"$f":"SUM(PayrollSum[[#This Row],[MapColumn1Deduction]:[PhicContributionEE]])","v":0},{"$f":"+PayrollSum[[#This Row],[GCI]]-PayrollSum[[#This Row],[TotalDeduction]]","v":0},null,null,null,null,{"$f":"SUM(PayrollSum[[#This Row],[SssContributionER]:[PhicContributionER]])","v":0},null,null,null,null,{"$f":"SUM(PayrollSum[[#This Row],[DeMinimisBenefit]:[OtherNonTaxableIncome]])","v":0},null,null,null,null,null,null,null,null,null,null,null,null,null,null,null,null,null,null,null,null,null,null,null,null,null,null,null,null,null,null,null,null,null,null,null,null,null,null,null,null,null,null,null,null,null,null,null,null,null,null,null,null,null,null,null,null,null,null,null,null,null,null,null,null,null,null,null,null,null,null,null,null,null,"Y"]
[null,null,null,null,null,null,null,null,null,null,null,{"$f":"SUM(PayrollSum[[#This Row],[BasicPay]:[NightShiftDifferential]])-PayrollSum[[#This Row],[LatesAndAbsences]]","v":0},null,null,null,null,null,null,null,null,null,null,null,null,null,null,null,null,null,null,{"$f":"SUM(PayrollSum[[#This Row],[Salaries2]:[MapColumn10Addition]])","v":0},null,null,null,null,null,null,null,null,null,null,null,null,null,null,{"$f":"SUM(PayrollSum[[#This Row],[MapColumn1Deduction]:[PhicContributionEE]])","v":0},{"$f":"+PayrollSum[[#This Row],[GCI]]-PayrollSum[[#This Row],[TotalDeduction]]","v":0},null,null,null,null,{"$f":"SUM(PayrollSum[[#This Row],[SssContributionER]:[PhicContributionER]])","v":0},null,null,null,null,{"$f":"SUM(PayrollSum[[#This Row],[DeMinimisBenefit]:[OtherNonTaxableIncome]])","v":0},null,null,null,null,null,null,null,null,null,null,null,null,null,null,null,null,null,null,null,null,null,null,null,null,null,null,null,null,null,null,null,null,null,null,null,null,null,null,null,null,null,null,null,null,null,null,null,null,null,null,null,null,null,null,null,null,null,null,null,null,null,null,null,null,null,null,null,null,null,null,null,null,null,"Y"]
[null,null,null,null,null,null,null,null,null,null,null,{"$f":"SUM(PayrollSum[[#This Row],[BasicPay]:[NightShiftDifferential]])-PayrollSum[[#This Row],[LatesAndAbsences]]","v":0},null,null,null,null,null,null,null,null,null,null,null,null,null,null,null,null,null,null,{"$f":"SUM(PayrollSum[[#This Row],[Salaries2]:[MapColumn10Addition]])","v":0},null,null,null,null,null,null,null,null,null,null,null,null,null,null,{"$f":"SUM(PayrollSum[[#This Row],[MapColumn1Deduction]:[PhicContributionEE]])","v":0},{"$f":"+PayrollSum[[#This Row],[GCI]]-PayrollSum[[#This Row],[TotalDeduction]]","v":0},null,null,null,null,{"$f":"SUM(PayrollSum[[#This Row],[SssContributionER]:[PhicContributionER]])","v":0},null,null,null,null,{"$f":"SUM(PayrollSum[[#This Row],[DeMinimisBenefit]:[OtherNonTaxableIncome]])","v":0},null,null,null,null,null,null,null,null,null,null,null,null,null,null,null,null,null,null,null,null,null,null,null,null,null,null,null,null,null,null,null,null,null,null,null,null,null,null,null,null,null,null,null,null,null,null,null,null,null,null,null,null,null,null,null,null,null,null,null,null,null,null,null,null,null,null,null,null,null,null,null,null,null,"Y"]
[null,null,null,null,null,null,null,null,null,null,null,{"$f":"SUM(PayrollSum[[#This Row],[BasicPay]:[NightShiftDifferential]])-PayrollSum[[#This Row],[LatesAndAbsences]]","v":0},null,null,null,null,null,null,null,null,null,null,null,null,null,null,null,null,null,null,{"$f":"SUM(PayrollSum[[#This Row],[Salaries2]:[MapColumn10Addition]])","v":0},null,null,null,null,null,null,null,null,null,null,null,null,null,null,{"$f":"SUM(PayrollSum[[#This Row],[MapColumn1Deduction]:[PhicContributionEE]])","v":0},{"$f":"+PayrollSum[[#This Row],[GCI]]-PayrollSum[[#This Row],[TotalDeduction]]","v":0},null,null,null,null,{"$f":"SUM(PayrollSum[[#This Row],[SssContributionER]:[PhicContributionER]])","v":0},null,null,null,null,{"$f":"SUM(PayrollSum[[#This Row],[DeMinimisBenefit]:[OtherNonTaxableIncome]])","v":0},null,null,null,null,null,null,null,null,null,null,null,null,null,null,null,null,null,null,null,null,null,null,null,null,null,null,null,null,null,null,null,null,null,null,null,null,null,null,null,null,null,null,null,null,null,null,null,null,null,null,null,null,null,null,null,null,null,null,null,null,null,null,null,null,null,null,null,null,null,null,null,null,null,"Y"]
[null,null,null,null,null,null,null,null,null,null,null,{"$f":"SUM(PayrollSum[[#This Row],[BasicPay]:[NightShiftDifferential]])-PayrollSum[[#This Row],[LatesAndAbsences]]","v":0},null,null,null,null,null,null,null,null,null,null,null,null,null,null,null,null,null,null,{"$f":"SUM(PayrollSum[[#This Row],[Salaries2]:[MapColumn10Addition]])","v":0},null,null,null,null,null,null,null,null,null,null,null,null,null,null,{"$f":"SUM(PayrollSum[[#This Row],[MapColumn1Deduction]:[PhicContributionEE]])","v":0},{"$f":"+PayrollSum[[#This Row],[GCI]]-PayrollSum[[#This Row],[TotalDeduction]]","v":0},null,null,null,null,{"$f":"SUM(PayrollSum[[#This Row],[SssContributionER]:[PhicContributionER]])","v":0},null,null,null,null,{"$f":"SUM(PayrollSum[[#This Row],[DeMinimisBenefit]:[OtherNonTaxableIncome]])","v":0},null,null,null,null,null,null,null,null,null,null,null,null,null,null,null,null,null,null,null,null,null,null,null,null,null,null,null,null,null,null,null,null,null,null,null,null,null,null,null,null,null,null,null,null,null,null,null,null,null,null,null,null,null,null,null,null,null,null,null,null,null,null,null,null,null,null,null,null,null,null,null,null,null,"Y"]
[null,null,null,null,null,null,null,null,null,null,null,{"$f":"SUM(PayrollSum[[#This Row],[BasicPay]:[NightShiftDifferential]])-PayrollSum[[#This Row],[LatesAndAbsences]]","v":0},null,null,null,null,null,null,null,null,null,null,null,null,null,null,null,null,null,null,{"$f":"SUM(PayrollSum[[#This Row],[Salaries2]:[MapColumn10Addition]])","v":0},null,null,null,null,null,null,null,null,null,null,null,null,null,null,{"$f":"SUM(PayrollSum[[#This Row],[MapColumn1Deduction]:[PhicContributionEE]])","v":0},{"$f":"+PayrollSum[[#This Row],[GCI]]-PayrollSum[[#This Row],[TotalDeduction]]","v":0},null,null,null,null,{"$f":"SUM(PayrollSum[[#This Row],[SssContributionER]:[PhicContributionER]])","v":0},null,null,null,null,{"$f":"SUM(PayrollSum[[#This Row],[DeMinimisBenefit]:[OtherNonTaxableIncome]])","v":0},null,null,null,null,null,null,null,null,null,null,null,null,null,null,null,null,null,null,null,null,null,null,null,null,null,null,null,null,null,null,null,null,null,null,null,null,null,null,null,null,null,null,null,null,null,null,null,null,null,null,null,null,null,null,null,null,null,null,null,null,null,null,null,null,null,null,null,null,null,null,null,null,null,"Y"]
[null,null,null,null,null,null,null,null,null,null,null,{"$f":"SUM(PayrollSum[[#This Row],[BasicPay]:[NightShiftDifferential]])-PayrollSum[[#This Row],[LatesAndAbsences]]","v":0},null,null,null,null,null,null,null,null,null,null,null,null,null,null,null,null,null,null,{"$f":"SUM(PayrollSum[[#This Row],[Salaries2]:[MapColumn10Addition]])","v":0},null,null,null,null,null,null,null,null,null,null,null,null,null,null,{"$f":"SUM(PayrollSum[[#This Row],[MapColumn1Deduction]:[PhicContributionEE]])","v":0},{"$f":"+PayrollSum[[#This Row],[GCI]]-PayrollSum[[#This Row],[TotalDeduction]]","v":0},null,null,null,null,{"$f":"SUM(PayrollSum[[#This Row],[SssContributionER]:[PhicContributionER]])","v":0},null,null,null,null,{"$f":"SUM(PayrollSum[[#This Row],[DeMinimisBenefit]:[OtherNonTaxableIncome]])","v":0},null,null,null,null,null,null,null,null,null,null,null,null,null,null,null,null,null,null,null,null,null,null,null,null,null,null,null,null,null,null,null,null,null,null,null,null,null,null,null,null,null,null,null,null,null,null,null,null,null,null,null,null,null,null,null,null,null,null,null,null,null,null,null,null,null,null,null,null,null,null,null,null,null,"Y"]
[null,null,null,null,null,null,null,null,null,null,null,{"$f":"SUM(PayrollSum[[#This Row],[BasicPay]:[NightShiftDifferential]])-PayrollSum[[#This Row],[LatesAndAbsences]]","v":0},null,null,null,null,null,null,null,null,null,null,null,null,null,null,null,null,null,null,{"$f":"SUM(PayrollSum[[#This Row],[Salaries2]:[MapColumn10Addition]])","v":0},null,null,null,null,null,null,null,null,null,null,null,null,null,null,{"$f":"SUM(PayrollSum[[#This Row],[MapColumn1Deduction]:[PhicContributionEE]])","v":0},{"$f":"+PayrollSum[[#This Row],[GCI]]-PayrollSum[[#This Row],[TotalDeduction]]","v":0},null,null,null,null,{"$f":"SUM(PayrollSum[[#This Row],[SssContributionER]:[PhicContributionER]])","v":0},null,null,null,null,{"$f":"SUM(PayrollSum[[#This Row],[DeMinimisBenefit]:[OtherNonTaxableIncome]])","v":0},null,null,null,null,null,null,null,null,null,null,null,null,null,null,null,null,null,null,null,null,null,null,null,null,null,null,null,null,null,null,null,null,null,null,null,null,null,null,null,null,null,null,null,null,null,null,null,null,null,null,null,null,null,null,null,null,null,null,null,null,null,null,null,null,null,null,null,null,null,null,null,null,null,"Y"]
[null,null,null,null,null,null,null,null,null,null,null,{"$f":"SUM(PayrollSum[[#This Row],[BasicPay]:[NightShiftDifferential]])-PayrollSum[[#This Row],[LatesAndAbsences]]","v":0},null,null,null,null,null,null,null,null,null,null,null,null,null,null,null,null,null,null,{"$f":"SUM(PayrollSum[[#This Row],[Salaries2]:[MapColumn10Addition]])","v":0},null,null,null,null,null,null,null,null,null,null,null,null,null,null,{"$f":"SUM(PayrollSum[[#This Row],[MapColumn1Deduction]:[PhicContributionEE]])","v":0},{"$f":"+PayrollSum[[#This Row],[GCI]]-PayrollSum[[#This Row],[TotalDeduction]]","v":0},null,null,null,null,{"$f":"SUM(PayrollSum[[#This Row],[SssContributionER]:[PhicContributionER]])","v":0},null,null,null,null,{"$f":"SUM(PayrollSum[[#This Row],[DeMinimisBenefit]:[OtherNonTaxableIncome]])","v":0},null,null,null,null,null,null,null,null,null,null,null,null,null,null,null,null,null,null,null,null,null,null,null,null,null,null,null,null,null,null,null,null,null,null,null,null,null,null,null,null,null,null,null,null,null,null,null,null,null,null,null,null,null,null,null,null,null,null,null,null,null,null,null,null,null,null,null,null,null,null,null,null,null,"Y"]
[null,null,null,null,null,null,null,null,null,null,null,{"$f":"SUM(PayrollSum[[#This Row],[BasicPay]:[NightShiftDifferential]])-PayrollSum[[#This Row],[LatesAndAbsences]]","v":0},null,null,null,null,null,null,null,null,null,null,null,null,null,null,null,null,null,null,{"$f":"SUM(PayrollSum[[#This Row],[Salaries2]:[MapColumn10Addition]])","v":0},null,null,null,null,null,null,null,null,null,null,null,null,null,null,{"$f":"SUM(PayrollSum[[#This Row],[MapColumn1Deduction]:[PhicContributionEE]])","v":0},{"$f":"+PayrollSum[[#This Row],[GCI]]-PayrollSum[[#This Row],[TotalDeduction]]","v":0},null,null,null,null,{"$f":"SUM(PayrollSum[[#This Row],[SssContributionER]:[PhicContributionER]])","v":0},null,null,null,null,{"$f":"SUM(PayrollSum[[#This Row],[DeMinimisBenefit]:[OtherNonTaxableIncome]])","v":0},null,null,null,null,null,null,null,null,null,null,null,null,null,null,null,null,null,null,null,null,null,null,null,null,null,null,null,null,null,null,null,null,null,null,null,null,null,null,null,null,null,null,null,null,null,null,null,null,null,null,null,null,null,null,null,null,null,null,null,null,null,null,null,null,null,null,null,null,null,null,null,null,null,"Y"]
[null,null,null,null,null,null,null,null,null,null,null,{"$f":"SUM(PayrollSum[[#This Row],[BasicPay]:[NightShiftDifferential]])-PayrollSum[[#This Row],[LatesAndAbsences]]","v":0},null,null,null,null,null,null,null,null,null,null,null,null,null,null,null,null,null,null,{"$f":"SUM(PayrollSum[[#This Row],[Salaries2]:[MapColumn10Addition]])","v":0},null,null,null,null,null,null,null,null,null,null,null,null,null,null,{"$f":"SUM(PayrollSum[[#This Row],[MapColumn1Deduction]:[PhicContributionEE]])","v":0},{"$f":"+PayrollSum[[#This Row],[GCI]]-PayrollSum[[#This Row],[TotalDeduction]]","v":0},null,null,null,null,{"$f":"SUM(PayrollSum[[#This Row],[SssContributionER]:[PhicContributionER]])","v":0},null,null,null,null,{"$f":"SUM(PayrollSum[[#This Row],[DeMinimisBenefit]:[OtherNonTaxableIncome]])","v":0},null,null,null,null,null,null,null,null,null,null,null,null,null,null,null,null,null,null,null,null,null,null,null,null,null,null,null,null,null,null,null,null,null,null,null,null,null,null,null,null,null,null,null,null,null,null,null,null,null,null,null,null,null,null,null,null,null,null,null,null,null,null,null,null,null,null,null,null,null,null,null,null,null,"Y"]
[null,null,null,null,null,null,null,null,null,null,null,{"$f":"SUM(PayrollSum[[#This Row],[BasicPay]:[NightShiftDifferential]])-PayrollSum[[#This Row],[LatesAndAbsences]]","v":0},null,null,null,null,null,null,null,null,null,null,null,null,null,null,null,null,null,null,{"$f":"SUM(PayrollSum[[#This Row],[Salaries2]:[MapColumn10Addition]])","v":0},null,null,null,null,null,null,null,null,null,null,null,null,null,null,{"$f":"SUM(PayrollSum[[#This Row],[MapColumn1Deduction]:[PhicContributionEE]])","v":0},{"$f":"+PayrollSum[[#This Row],[GCI]]-PayrollSum[[#This Row],[TotalDeduction]]","v":0},null,null,null,null,{"$f":"SUM(PayrollSum[[#This Row],[SssContributionER]:[PhicContributionER]])","v":0},null,null,null,null,{"$f":"SUM(PayrollSum[[#This Row],[DeMinimisBenefit]:[OtherNonTaxableIncome]])","v":0},null,null,null,null,null,null,null,null,null,null,null,null,null,null,null,null,null,null,null,null,null,null,null,null,null,null,null,null,null,null,null,null,null,null,null,null,null,null,null,null,null,null,null,null,null,null,null,null,null,null,null,null,null,null,null,null,null,null,null,null,null,null,null,null,null,null,null,null,null,null,null,null,null,"Y"]
[null,null,null,null,null,null,null,null,null,null,null,{"$f":"SUM(PayrollSum[[#This Row],[BasicPay]:[NightShiftDifferential]])-PayrollSum[[#This Row],[LatesAndAbsences]]","v":0},null,null,null,null,null,null,null,null,null,null,null,null,null,null,null,null,null,null,{"$f":"SUM(PayrollSum[[#This Row],[Salaries2]:[MapColumn10Addition]])","v":0},null,null,null,null,null,null,null,null,null,null,null,null,null,null,{"$f":"SUM(PayrollSum[[#This Row],[MapColumn1Deduction]:[PhicContributionEE]])","v":0},{"$f":"+PayrollSum[[#This Row],[GCI]]-PayrollSum[[#This Row],[TotalDeduction]]","v":0},null,null,null,null,{"$f":"SUM(PayrollSum[[#This Row],[SssContributionER]:[PhicContributionER]])","v":0},null,null,null,null,{"$f":"SUM(PayrollSum[[#This Row],[DeMinimisBenefit]:[OtherNonTaxableIncome]])","v":0},null,null,null,null,null,null,null,null,null,null,null,null,null,null,null,null,null,null,null,null,null,null,null,null,null,null,null,null,null,null,null,null,null,null,null,null,null,null,null,null,null,null,null,null,null,null,null,null,null,null,null,null,null,null,null,null,null,null,null,null,null,null,null,null,null,null,null,null,null,null,null,null,null,"Y"]
[null,null,null,null,null,null,null,null,null,null,null,{"$f":"SUM(PayrollSum[[#This Row],[BasicPay]:[NightShiftDifferential]])-PayrollSum[[#This Row],[LatesAndAbsences]]","v":0},null,null,null,null,null,null,null,null,null,null,null,null,null,null,null,null,null,null,{"$f":"SUM(PayrollSum[[#This Row],[Salaries2]:[MapColumn10Addition]])","v":0},null,null,null,null,null,null,null,null,null,null,null,null,null,null,{"$f":"SUM(PayrollSum[[#This Row],[MapColumn1Deduction]:[PhicContributionEE]])","v":0},{"$f":"+PayrollSum[[#This Row],[GCI]]-PayrollSum[[#This Row],[TotalDeduction]]","v":0},null,null,null,null,{"$f":"SUM(PayrollSum[[#This Row],[SssContributionER]:[PhicContributionER]])","v":0},null,null,null,null,{"$f":"SUM(PayrollSum[[#This Row],[DeMinimisBenefit]:[OtherNonTaxableIncome]])","v":0},null,null,null,null,null,null,null,null,null,null,null,null,null,null,null,null,null,null,null,null,null,null,null,null,null,null,null,null,null,null,null,null,null,null,null,null,null,null,null,null,null,null,null,null,null,null,null,null,null,null,null,null,null,null,null,null,null,null,null,null,null,null,null,null,null,null,null,null,null,null,null,null,null,"Y"]
[null,null,null,null,null,null,null,null,null,null,null,{"$f":"SUM(PayrollSum[[#This Row],[BasicPay]:[NightShiftDifferential]])-PayrollSum[[#This Row],[LatesAndAbsences]]","v":0},null,null,null,null,null,null,null,null,null,null,null,null,null,null,null,null,null,null,{"$f":"SUM(PayrollSum[[#This Row],[Salaries2]:[MapColumn10Addition]])","v":0},null,null,null,null,null,null,null,null,null,null,null,null,null,null,{"$f":"SUM(PayrollSum[[#This Row],[MapColumn1Deduction]:[PhicContributionEE]])","v":0},{"$f":"+PayrollSum[[#This Row],[GCI]]-PayrollSum[[#This Row],[TotalDeduction]]","v":0},null,null,null,null,{"$f":"SUM(PayrollSum[[#This Row],[SssContributionER]:[PhicContributionER]])","v":0},null,null,null,null,{"$f":"SUM(PayrollSum[[#This Row],[DeMinimisBenefit]:[OtherNonTaxableIncome]])","v":0},null,null,null,null,null,null,null,null,null,null,null,null,null,null,null,null,null,null,null,null,null,null,null,null,null,null,null,null,null,null,null,null,null,null,null,null,null,null,null,null,null,null,null,null,null,null,null,null,null,null,null,null,null,null,null,null,null,null,null,null,null,null,null,null,null,null,null,null,null,null,null,null,null,"Y"]
[null,null,null,null,null,null,null,null,null,null,null,{"$f":"SUM(PayrollSum[[#This Row],[BasicPay]:[NightShiftDifferential]])-PayrollSum[[#This Row],[LatesAndAbsences]]","v":0},null,null,null,null,null,null,null,null,null,null,null,null,null,null,null,null,null,null,{"$f":"SUM(PayrollSum[[#This Row],[Salaries2]:[MapColumn10Addition]])","v":0},null,null,null,null,null,null,null,null,null,null,null,null,null,null,{"$f":"SUM(PayrollSum[[#This Row],[MapColumn1Deduction]:[PhicContributionEE]])","v":0},{"$f":"+PayrollSum[[#This Row],[GCI]]-PayrollSum[[#This Row],[TotalDeduction]]","v":0},null,null,null,null,{"$f":"SUM(PayrollSum[[#This Row],[SssContributionER]:[PhicContributionER]])","v":0},null,null,null,null,{"$f":"SUM(PayrollSum[[#This Row],[DeMinimisBenefit]:[OtherNonTaxableIncome]])","v":0},null,null,null,null,null,null,null,null,null,null,null,null,null,null,null,null,null,null,null,null,null,null,null,null,null,null,null,null,null,null,null,null,null,null,null,null,null,null,null,null,null,null,null,null,null,null,null,null,null,null,null,null,null,null,null,null,null,null,null,null,null,null,null,null,null,null,null,null,null,null,null,null,null,"Y"]
[null,null,null,null,null,null,null,null,null,null,null,{"$f":"SUM(PayrollSum[[#This Row],[BasicPay]:[NightShiftDifferential]])-PayrollSum[[#This Row],[LatesAndAbsences]]","v":0},null,null,null,null,null,null,null,null,null,null,null,null,null,null,null,null,null,null,{"$f":"SUM(PayrollSum[[#This Row],[Salaries2]:[MapColumn10Addition]])","v":0},null,null,null,null,null,null,null,null,null,null,null,null,null,null,{"$f":"SUM(PayrollSum[[#This Row],[MapColumn1Deduction]:[PhicContributionEE]])","v":0},{"$f":"+PayrollSum[[#This Row],[GCI]]-PayrollSum[[#This Row],[TotalDeduction]]","v":0},null,null,null,null,{"$f":"SUM(PayrollSum[[#This Row],[SssContributionER]:[PhicContributionER]])","v":0},null,null,null,null,{"$f":"SUM(PayrollSum[[#This Row],[DeMinimisBenefit]:[OtherNonTaxableIncome]])","v":0},null,null,null,null,null,null,null,null,null,null,null,null,null,null,null,null,null,null,null,null,null,null,null,null,null,null,null,null,null,null,null,null,null,null,null,null,null,null,null,null,null,null,null,null,null,null,null,null,null,null,null,null,null,null,null,null,null,null,null,null,null,null,null,null,null,null,null,null,null,null,null,null,null,"Y"]
[null,null,null,null,null,null,null,null,null,null,null,{"$f":"SUM(PayrollSum[[#This Row],[BasicPay]:[NightShiftDifferential]])-PayrollSum[[#This Row],[LatesAndAbsences]]","v":0},null,null,null,null,null,null,null,null,null,null,null,null,null,null,null,null,null,null,{"$f":"SUM(PayrollSum[[#This Row],[Salaries2]:[MapColumn10Addition]])","v":0},null,null,null,null,null,null,null,null,null,null,null,null,null,null,{"$f":"SUM(PayrollSum[[#This Row],[MapColumn1Deduction]:[PhicContributionEE]])","v":0},{"$f":"+PayrollSum[[#This Row],[GCI]]-PayrollSum[[#This Row],[TotalDeduction]]","v":0},null,null,null,null,{"$f":"SUM(PayrollSum[[#This Row],[SssContributionER]:[PhicContributionER]])","v":0},null,null,null,null,{"$f":"SUM(PayrollSum[[#This Row],[DeMinimisBenefit]:[OtherNonTaxableIncome]])","v":0},null,null,null,null,null,null,null,null,null,null,null,null,null,null,null,null,null,null,null,null,null,null,null,null,null,null,null,null,null,null,null,null,null,null,null,null,null,null,null,null,null,null,null,null,null,null,null,null,null,null,null,null,null,null,null,null,null,null,null,null,null,null,null,null,null,null,null,null,null,null,null,null,null,"Y"]
[null,null,null,null,null,null,null,null,null,null,null,{"$f":"SUM(PayrollSum[[#This Row],[BasicPay]:[NightShiftDifferential]])-PayrollSum[[#This Row],[LatesAndAbsences]]","v":0},null,null,null,null,null,null,null,null,null,null,null,null,null,null,null,null,null,null,{"$f":"SUM(PayrollSum[[#This Row],[Salaries2]:[MapColumn10Addition]])","v":0},null,null,null,null,null,null,null,null,null,null,null,null,null,null,{"$f":"SUM(PayrollSum[[#This Row],[MapColumn1Deduction]:[PhicContributionEE]])","v":0},{"$f":"+PayrollSum[[#This Row],[GCI]]-PayrollSum[[#This Row],[TotalDeduction]]","v":0},null,null,null,null,{"$f":"SUM(PayrollSum[[#This Row],[SssContributionER]:[PhicContributionER]])","v":0},null,null,null,null,{"$f":"SUM(PayrollSum[[#This Row],[DeMinimisBenefit]:[OtherNonTaxableIncome]])","v":0},null,null,null,null,null,null,null,null,null,null,null,null,null,null,null,null,null,null,null,null,null,null,null,null,null,null,null,null,null,null,null,null,null,null,null,null,null,null,null,null,null,null,null,null,null,null,null,null,null,null,null,null,null,null,null,null,null,null,null,null,null,null,null,null,null,null,null,null,null,null,null,null,null,"Y"]
[null,null,null,null,null,null,null,null,null,null,null,{"$f":"SUM(PayrollSum[[#This Row],[BasicPay]:[NightShiftDifferential]])-PayrollSum[[#This Row],[LatesAndAbsences]]","v":0},null,null,null,null,null,null,null,null,null,null,null,null,null,null,null,null,null,null,{"$f":"SUM(PayrollSum[[#This Row],[Salaries2]:[MapColumn10Addition]])","v":0},null,null,null,null,null,null,null,null,null,null,null,null,null,null,{"$f":"SUM(PayrollSum[[#This Row],[MapColumn1Deduction]:[PhicContributionEE]])","v":0},{"$f":"+PayrollSum[[#This Row],[GCI]]-PayrollSum[[#This Row],[TotalDeduction]]","v":0},null,null,null,null,{"$f":"SUM(PayrollSum[[#This Row],[SssContributionER]:[PhicContributionER]])","v":0},null,null,null,null,{"$f":"SUM(PayrollSum[[#This Row],[DeMinimisBenefit]:[OtherNonTaxableIncome]])","v":0},null,null,null,null,null,null,null,null,null,null,null,null,null,null,null,null,null,null,null,null,null,null,null,null,null,null,null,null,null,null,null,null,null,null,null,null,null,null,null,null,null,null,null,null,null,null,null,null,null,null,null,null,null,null,null,null,null,null,null,null,null,null,null,null,null,null,null,null,null,null,null,null,null,"Y"]
[null,null,null,null,null,null,null,null,null,null,null,{"$f":"SUM(PayrollSum[[#This Row],[BasicPay]:[NightShiftDifferential]])-PayrollSum[[#This Row],[LatesAndAbsences]]","v":0},null,null,null,null,null,null,null,null,null,null,null,null,null,null,null,null,null,null,{"$f":"SUM(PayrollSum[[#This Row],[Salaries2]:[MapColumn10Addition]])","v":0},null,null,null,null,null,null,null,null,null,null,null,null,null,null,{"$f":"SUM(PayrollSum[[#This Row],[MapColumn1Deduction]:[PhicContributionEE]])","v":0},{"$f":"+PayrollSum[[#This Row],[GCI]]-PayrollSum[[#This Row],[TotalDeduction]]","v":0},null,null,null,null,{"$f":"SUM(PayrollSum[[#This Row],[SssContributionER]:[PhicContributionER]])","v":0},null,null,null,null,{"$f":"SUM(PayrollSum[[#This Row],[DeMinimisBenefit]:[OtherNonTaxableIncome]])","v":0},null,null,null,null,null,null,null,null,null,null,null,null,null,null,null,null,null,null,null,null,null,null,null,null,null,null,null,null,null,null,null,null,null,null,null,null,null,null,null,null,null,null,null,null,null,null,null,null,null,null,null,null,null,null,null,null,null,null,null,null,null,null,null,null,null,null,null,null,null,null,null,null,null,"Y"]
[null,null,null,null,null,null,null,null,null,null,null,{"$f":"SUM(PayrollSum[[#This Row],[BasicPay]:[NightShiftDifferential]])-PayrollSum[[#This Row],[LatesAndAbsences]]","v":0},null,null,null,null,null,null,null,null,null,null,null,null,null,null,null,null,null,null,{"$f":"SUM(PayrollSum[[#This Row],[Salaries2]:[MapColumn10Addition]])","v":0},null,null,null,null,null,null,null,null,null,null,null,null,null,null,{"$f":"SUM(PayrollSum[[#This Row],[MapColumn1Deduction]:[PhicContributionEE]])","v":0},{"$f":"+PayrollSum[[#This Row],[GCI]]-PayrollSum[[#This Row],[TotalDeduction]]","v":0},null,null,null,null,{"$f":"SUM(PayrollSum[[#This Row],[SssContributionER]:[PhicContributionER]])","v":0},null,null,null,null,{"$f":"SUM(PayrollSum[[#This Row],[DeMinimisBenefit]:[OtherNonTaxableIncome]])","v":0},null,null,null,null,null,null,null,null,null,null,null,null,null,null,null,null,null,null,null,null,null,null,null,null,null,null,null,null,null,null,null,null,null,null,null,null,null,null,null,null,null,null,null,null,null,null,null,null,null,null,null,null,null,null,null,null,null,null,null,null,null,null,null,null,null,null,null,null,null,null,null,null,null,"Y"]
[null,null,null,null,null,null,null,null,null,null,null,{"$f":"SUM(PayrollSum[[#This Row],[BasicPay]:[NightShiftDifferential]])-PayrollSum[[#This Row],[LatesAndAbsences]]","v":0},null,null,null,null,null,null,null,null,null,null,null,null,null,null,null,null,null,null,{"$f":"SUM(PayrollSum[[#This Row],[Salaries2]:[MapColumn10Addition]])","v":0},null,null,null,null,null,null,null,null,null,null,null,null,null,null,{"$f":"SUM(PayrollSum[[#This Row],[MapColumn1Deduction]:[PhicContributionEE]])","v":0},{"$f":"+PayrollSum[[#This Row],[GCI]]-PayrollSum[[#This Row],[TotalDeduction]]","v":0},null,null,null,null,{"$f":"SUM(PayrollSum[[#This Row],[SssContributionER]:[PhicContributionER]])","v":0},null,null,null,null,{"$f":"SUM(PayrollSum[[#This Row],[DeMinimisBenefit]:[OtherNonTaxableIncome]])","v":0},null,null,null,null,null,null,null,null,null,null,null,null,null,null,null,null,null,null,null,null,null,null,null,null,null,null,null,null,null,null,null,null,null,null,null,null,null,null,null,null,null,null,null,null,null,null,null,null,null,null,null,null,null,null,null,null,null,null,null,null,null,null,null,null,null,null,null,null,null,null,null,null,null,"Y"]
[null,null,null,null,null,null,null,null,null,null,null,{"$f":"SUM(PayrollSum[[#This Row],[BasicPay]:[NightShiftDifferential]])-PayrollSum[[#This Row],[LatesAndAbsences]]","v":0},null,null,null,null,null,null,null,null,null,null,null,null,null,null,null,null,null,null,{"$f":"SUM(PayrollSum[[#This Row],[Salaries2]:[MapColumn10Addition]])","v":0},null,null,null,null,null,null,null,null,null,null,null,null,null,null,{"$f":"SUM(PayrollSum[[#This Row],[MapColumn1Deduction]:[PhicContributionEE]])","v":0},{"$f":"+PayrollSum[[#This Row],[GCI]]-PayrollSum[[#This Row],[TotalDeduction]]","v":0},null,null,null,null,{"$f":"SUM(PayrollSum[[#This Row],[SssContributionER]:[PhicContributionER]])","v":0},null,null,null,null,{"$f":"SUM(PayrollSum[[#This Row],[DeMinimisBenefit]:[OtherNonTaxableIncome]])","v":0},null,null,null,null,null,null,null,null,null,null,null,null,null,null,null,null,null,null,null,null,null,null,null,null,null,null,null,null,null,null,null,null,null,null,null,null,null,null,null,null,null,null,null,null,null,null,null,null,null,null,null,null,null,null,null,null,null,null,null,null,null,null,null,null,null,null,null,null,null,null,null,null,null,"Y"]
[null,null,null,null,null,null,null,null,null,null,null,{"$f":"SUM(PayrollSum[[#This Row],[BasicPay]:[NightShiftDifferential]])-PayrollSum[[#This Row],[LatesAndAbsences]]","v":0},null,null,null,null,null,null,null,null,null,null,null,null,null,null,null,null,null,null,{"$f":"SUM(PayrollSum[[#This Row],[Salaries2]:[MapColumn10Addition]])","v":0},null,null,null,null,null,null,null,null,null,null,null,null,null,null,{"$f":"SUM(PayrollSum[[#This Row],[MapColumn1Deduction]:[PhicContributionEE]])","v":0},{"$f":"+PayrollSum[[#This Row],[GCI]]-PayrollSum[[#This Row],[TotalDeduction]]","v":0},null,null,null,null,{"$f":"SUM(PayrollSum[[#This Row],[SssContributionER]:[PhicContributionER]])","v":0},null,null,null,null,{"$f":"SUM(PayrollSum[[#This Row],[DeMinimisBenefit]:[OtherNonTaxableIncome]])","v":0},null,null,null,null,null,null,null,null,null,null,null,null,null,null,null,null,null,null,null,null,null,null,null,null,null,null,null,null,null,null,null,null,null,null,null,null,null,null,null,null,null,null,null,null,null,null,null,null,null,null,null,null,null,null,null,null,null,null,null,null,null,null,null,null,null,null,null,null,null,null,null,null,null,"Y"]
[null,null,null,null,null,null,null,null,null,null,null,{"$f":"SUM(PayrollSum[[#This Row],[BasicPay]:[NightShiftDifferential]])-PayrollSum[[#This Row],[LatesAndAbsences]]","v":0},null,null,null,null,null,null,null,null,null,null,null,null,null,null,null,null,null,null,{"$f":"SUM(PayrollSum[[#This Row],[Salaries2]:[MapColumn10Addition]])","v":0},null,null,null,null,null,null,null,null,null,null,null,null,null,null,{"$f":"SUM(PayrollSum[[#This Row],[MapColumn1Deduction]:[PhicContributionEE]])","v":0},{"$f":"+PayrollSum[[#This Row],[GCI]]-PayrollSum[[#This Row],[TotalDeduction]]","v":0},null,null,null,null,{"$f":"SUM(PayrollSum[[#This Row],[SssContributionER]:[PhicContributionER]])","v":0},null,null,null,null,{"$f":"SUM(PayrollSum[[#This Row],[DeMinimisBenefit]:[OtherNonTaxableIncome]])","v":0},null,null,null,null,null,null,null,null,null,null,null,null,null,null,null,null,null,null,null,null,null,null,null,null,null,null,null,null,null,null,null,null,null,null,null,null,null,null,null,null,null,null,null,null,null,null,null,null,null,null,null,null,null,null,null,null,null,null,null,null,null,null,null,null,null,null,null,null,null,null,null,null,null,"Y"]
[null,null,null,null,null,null,null,null,null,null,null,{"$f":"SUM(PayrollSum[[#This Row],[BasicPay]:[NightShiftDifferential]])-PayrollSum[[#This Row],[LatesAndAbsences]]","v":0},null,null,null,null,null,null,null,null,null,null,null,null,null,null,null,null,null,null,{"$f":"SUM(PayrollSum[[#This Row],[Salaries2]:[MapColumn10Addition]])","v":0},null,null,null,null,null,null,null,null,null,null,null,null,null,null,{"$f":"SUM(PayrollSum[[#This Row],[MapColumn1Deduction]:[PhicContributionEE]])","v":0},{"$f":"+PayrollSum[[#This Row],[GCI]]-PayrollSum[[#This Row],[TotalDeduction]]","v":0},null,null,null,null,{"$f":"SUM(PayrollSum[[#This Row],[SssContributionER]:[PhicContributionER]])","v":0},null,null,null,null,{"$f":"SUM(PayrollSum[[#This Row],[DeMinimisBenefit]:[OtherNonTaxableIncome]])","v":0},null,null,null,null,null,null,null,null,null,null,null,null,null,null,null,null,null,null,null,null,null,null,null,null,null,null,null,null,null,null,null,null,null,null,null,null,null,null,null,null,null,null,null,null,null,null,null,null,null,null,null,null,null,null,null,null,null,null,null,null,null,null,null,null,null,null,null,null,null,null,null,null,null,"Y"]
[null,null,null,null,null,null,null,null,null,null,null,{"$f":"SUM(PayrollSum[[#This Row],[BasicPay]:[NightShiftDifferential]])-PayrollSum[[#This Row],[LatesAndAbsences]]","v":0},null,null,null,null,null,null,null,null,null,null,null,null,null,null,null,null,null,null,{"$f":"SUM(PayrollSum[[#This Row],[Salaries2]:[MapColumn10Addition]])","v":0},null,null,null,null,null,null,null,null,null,null,null,null,null,null,{"$f":"SUM(PayrollSum[[#This Row],[MapColumn1Deduction]:[PhicContributionEE]])","v":0},{"$f":"+PayrollSum[[#This Row],[GCI]]-PayrollSum[[#This Row],[TotalDeduction]]","v":0},null,null,null,null,{"$f":"SUM(PayrollSum[[#This Row],[SssContributionER]:[PhicContributionER]])","v":0},null,null,null,null,{"$f":"SUM(PayrollSum[[#This Row],[DeMinimisBenefit]:[OtherNonTaxableIncome]])","v":0},null,null,null,null,null,null,null,null,null,null,null,null,null,null,null,null,null,null,null,null,null,null,null,null,null,null,null,null,null,null,null,null,null,null,null,null,null,null,null,null,null,null,null,null,null,null,null,null,null,null,null,null,null,null,null,null,null,null,null,null,null,null,null,null,null,null,null,null,null,null,null,null,null,"Y"]
[null,null,null,null,null,null,null,null,null,null,null,{"$f":"SUM(PayrollSum[[#This Row],[BasicPay]:[NightShiftDifferential]])-PayrollSum[[#This Row],[LatesAndAbsences]]","v":0},null,null,null,null,null,null,null,null,null,null,null,null,null,null,null,null,null,null,{"$f":"SUM(PayrollSum[[#This Row],[Salaries2]:[MapColumn10Addition]])","v":0},null,null,null,null,null,null,null,null,null,null,null,null,null,null,{"$f":"SUM(PayrollSum[[#This Row],[MapColumn1Deduction]:[PhicContributionEE]])","v":0},{"$f":"+PayrollSum[[#This Row],[GCI]]-PayrollSum[[#This Row],[TotalDeduction]]","v":0},null,null,null,null,{"$f":"SUM(PayrollSum[[#This Row],[SssContributionER]:[PhicContributionER]])","v":0},null,null,null,null,{"$f":"SUM(PayrollSum[[#This Row],[DeMinimisBenefit]:[OtherNonTaxableIncome]])","v":0},null,null,null,null,null,null,null,null,null,null,null,null,null,null,null,null,null,null,null,null,null,null,null,null,null,null,null,null,null,null,null,null,null,null,null,null,null,null,null,null,null,null,null,null,null,null,null,null,null,null,null,null,null,null,null,null,null,null,null,null,null,null,null,null,null,null,null,null,null,null,null,null,null,"Y"]
[null,null,null,null,null,null,null,null,null,null,null,{"$f":"SUM(PayrollSum[[#This Row],[BasicPay]:[NightShiftDifferential]])-PayrollSum[[#This Row],[LatesAndAbsences]]","v":0},null,null,null,null,null,null,null,null,null,null,null,null,null,null,null,null,null,null,{"$f":"SUM(PayrollSum[[#This Row],[Salaries2]:[MapColumn10Addition]])","v":0},null,null,null,null,null,null,null,null,null,null,null,null,null,null,{"$f":"SUM(PayrollSum[[#This Row],[MapColumn1Deduction]:[PhicContributionEE]])","v":0},{"$f":"+PayrollSum[[#This Row],[GCI]]-PayrollSum[[#This Row],[TotalDeduction]]","v":0},null,null,null,null,{"$f":"SUM(PayrollSum[[#This Row],[SssContributionER]:[PhicContributionER]])","v":0},null,null,null,null,{"$f":"SUM(PayrollSum[[#This Row],[DeMinimisBenefit]:[OtherNonTaxableIncome]])","v":0},null,null,null,null,null,null,null,null,null,null,null,null,null,null,null,null,null,null,null,null,null,null,null,null,null,null,null,null,null,null,null,null,null,null,null,null,null,null,null,null,null,null,null,null,null,null,null,null,null,null,null,null,null,null,null,null,null,null,null,null,null,null,null,null,null,null,null,null,null,null,null,null,null,"Y"]
[null,null,null,null,null,null,null,null,null,null,null,{"$f":"SUM(PayrollSum[[#This Row],[BasicPay]:[NightShiftDifferential]])-PayrollSum[[#This Row],[LatesAndAbsences]]","v":0},null,null,null,null,null,null,null,null,null,null,null,null,null,null,null,null,null,null,{"$f":"SUM(PayrollSum[[#This Row],[Salaries2]:[MapColumn10Addition]])","v":0},null,null,null,null,null,null,null,null,null,null,null,null,null,null,{"$f":"SUM(PayrollSum[[#This Row],[MapColumn1Deduction]:[PhicContributionEE]])","v":0},{"$f":"+PayrollSum[[#This Row],[GCI]]-PayrollSum[[#This Row],[TotalDeduction]]","v":0},null,null,null,null,{"$f":"SUM(PayrollSum[[#This Row],[SssContributionER]:[PhicContributionER]])","v":0},null,null,null,null,{"$f":"SUM(PayrollSum[[#This Row],[DeMinimisBenefit]:[OtherNonTaxableIncome]])","v":0},null,null,null,null,null,null,null,null,null,null,null,null,null,null,null,null,null,null,null,null,null,null,null,null,null,null,null,null,null,null,null,null,null,null,null,null,null,null,null,null,null,null,null,null,null,null,null,null,null,null,null,null,null,null,null,null,null,null,null,null,null,null,null,null,null,null,null,null,null,null,null,null,null,"Y"]
[null,null,null,null,null,null,null,null,null,null,null,{"$f":"SUM(PayrollSum[[#This Row],[BasicPay]:[NightShiftDifferential]])-PayrollSum[[#This Row],[LatesAndAbsences]]","v":0},null,null,null,null,null,null,null,null,null,null,null,null,null,null,null,null,null,null,{"$f":"SUM(PayrollSum[[#This Row],[Salaries2]:[MapColumn10Addition]])","v":0},null,null,null,null,null,null,null,null,null,null,null,null,null,null,{"$f":"SUM(PayrollSum[[#This Row],[MapColumn1Deduction]:[PhicContributionEE]])","v":0},{"$f":"+PayrollSum[[#This Row],[GCI]]-PayrollSum[[#This Row],[TotalDeduction]]","v":0},null,null,null,null,{"$f":"SUM(PayrollSum[[#This Row],[SssContributionER]:[PhicContributionER]])","v":0},null,null,null,null,{"$f":"SUM(PayrollSum[[#This Row],[DeMinimisBenefit]:[OtherNonTaxableIncome]])","v":0},null,null,null,null,null,null,null,null,null,null,null,null,null,null,null,null,null,null,null,null,null,null,null,null,null,null,null,null,null,null,null,null,null,null,null,null,null,null,null,null,null,null,null,null,null,null,null,null,null,null,null,null,null,null,null,null,null,null,null,null,null,null,null,null,null,null,null,null,null,null,null,null,null,"Y"]
[null,null,null,null,null,null,null,null,null,null,null,{"$f":"SUM(PayrollSum[[#This Row],[BasicPay]:[NightShiftDifferential]])-PayrollSum[[#This Row],[LatesAndAbsences]]","v":0},null,null,null,null,null,null,null,null,null,null,null,null,null,null,null,null,null,null,{"$f":"SUM(PayrollSum[[#This Row],[Salaries2]:[MapColumn10Addition]])","v":0},null,null,null,null,null,null,null,null,null,null,null,null,null,null,{"$f":"SUM(PayrollSum[[#This Row],[MapColumn1Deduction]:[PhicContributionEE]])","v":0},{"$f":"+PayrollSum[[#This Row],[GCI]]-PayrollSum[[#This Row],[TotalDeduction]]","v":0},null,null,null,null,{"$f":"SUM(PayrollSum[[#This Row],[SssContributionER]:[PhicContributionER]])","v":0},null,null,null,null,{"$f":"SUM(PayrollSum[[#This Row],[DeMinimisBenefit]:[OtherNonTaxableIncome]])","v":0},null,null,null,null,null,null,null,null,null,null,null,null,null,null,null,null,null,null,null,null,null,null,null,null,null,null,null,null,null,null,null,null,null,null,null,null,null,null,null,null,null,null,null,null,null,null,null,null,null,null,null,null,null,null,null,null,null,null,null,null,null,null,null,null,null,null,null,null,null,null,null,null,null,"Y"]
[null,null,null,null,null,null,null,null,null,null,null,{"$f":"SUM(PayrollSum[[#This Row],[BasicPay]:[NightShiftDifferential]])-PayrollSum[[#This Row],[LatesAndAbsences]]","v":0},null,null,null,null,null,null,null,null,null,null,null,null,null,null,null,null,null,null,{"$f":"SUM(PayrollSum[[#This Row],[Salaries2]:[MapColumn10Addition]])","v":0},null,null,null,null,null,null,null,null,null,null,null,null,null,null,{"$f":"SUM(PayrollSum[[#This Row],[MapColumn1Deduction]:[PhicContributionEE]])","v":0},{"$f":"+PayrollSum[[#This Row],[GCI]]-PayrollSum[[#This Row],[TotalDeduction]]","v":0},null,null,null,null,{"$f":"SUM(PayrollSum[[#This Row],[SssContributionER]:[PhicContributionER]])","v":0},null,null,null,null,{"$f":"SUM(PayrollSum[[#This Row],[DeMinimisBenefit]:[OtherNonTaxableIncome]])","v":0},null,null,null,null,null,null,null,null,null,null,null,null,null,null,null,null,null,null,null,null,null,null,null,null,null,null,null,null,null,null,null,null,null,null,null,null,null,null,null,null,null,null,null,null,null,null,null,null,null,null,null,null,null,null,null,null,null,null,null,null,null,null,null,null,null,null,null,null,null,null,null,null,null,"Y"]
[null,null,null,null,null,null,null,null,null,null,null,{"$f":"SUM(PayrollSum[[#This Row],[BasicPay]:[NightShiftDifferential]])-PayrollSum[[#This Row],[LatesAndAbsences]]","v":0},null,null,null,null,null,null,null,null,null,null,null,null,null,null,null,null,null,null,{"$f":"SUM(PayrollSum[[#This Row],[Salaries2]:[MapColumn10Addition]])","v":0},null,null,null,null,null,null,null,null,null,null,null,null,null,null,{"$f":"SUM(PayrollSum[[#This Row],[MapColumn1Deduction]:[PhicContributionEE]])","v":0},{"$f":"+PayrollSum[[#This Row],[GCI]]-PayrollSum[[#This Row],[TotalDeduction]]","v":0},null,null,null,null,{"$f":"SUM(PayrollSum[[#This Row],[SssContributionER]:[PhicContributionER]])","v":0},null,null,null,null,{"$f":"SUM(PayrollSum[[#This Row],[DeMinimisBenefit]:[OtherNonTaxableIncome]])","v":0},null,null,null,null,null,null,null,null,null,null,null,null,null,null,null,null,null,null,null,null,null,null,null,null,null,null,null,null,null,null,null,null,null,null,null,null,null,null,null,null,null,null,null,null,null,null,null,null,null,null,null,null,null,null,null,null,null,null,null,null,null,null,null,null,null,null,null,null,null,null,null,null,null,"Y"]
[null,null,null,null,null,null,null,null,null,null,null,{"$f":"SUM(PayrollSum[[#This Row],[BasicPay]:[NightShiftDifferential]])-PayrollSum[[#This Row],[LatesAndAbsences]]","v":0},null,null,null,null,null,null,null,null,null,null,null,null,null,null,null,null,null,null,{"$f":"SUM(PayrollSum[[#This Row],[Salaries2]:[MapColumn10Addition]])","v":0},null,null,null,null,null,null,null,null,null,null,null,null,null,null,{"$f":"SUM(PayrollSum[[#This Row],[MapColumn1Deduction]:[PhicContributionEE]])","v":0},{"$f":"+PayrollSum[[#This Row],[GCI]]-PayrollSum[[#This Row],[TotalDeduction]]","v":0},null,null,null,null,{"$f":"SUM(PayrollSum[[#This Row],[SssContributionER]:[PhicContributionER]])","v":0},null,null,null,null,{"$f":"SUM(PayrollSum[[#This Row],[DeMinimisBenefit]:[OtherNonTaxableIncome]])","v":0},null,null,null,null,null,null,null,null,null,null,null,null,null,null,null,null,null,null,null,null,null,null,null,null,null,null,null,null,null,null,null,null,null,null,null,null,null,null,null,null,null,null,null,null,null,null,null,null,null,null,null,null,null,null,null,null,null,null,null,null,null,null,null,null,null,null,null,null,null,null,null,null,null,"Y"]
[null,null,null,null,null,null,null,null,null,null,null,{"$f":"SUM(PayrollSum[[#This Row],[BasicPay]:[NightShiftDifferential]])-PayrollSum[[#This Row],[LatesAndAbsences]]","v":0},null,null,null,null,null,null,null,null,null,null,null,null,null,null,null,null,null,null,{"$f":"SUM(PayrollSum[[#This Row],[Salaries2]:[MapColumn10Addition]])","v":0},null,null,null,null,null,null,null,null,null,null,null,null,null,null,{"$f":"SUM(PayrollSum[[#This Row],[MapColumn1Deduction]:[PhicContributionEE]])","v":0},{"$f":"+PayrollSum[[#This Row],[GCI]]-PayrollSum[[#This Row],[TotalDeduction]]","v":0},null,null,null,null,{"$f":"SUM(PayrollSum[[#This Row],[SssContributionER]:[PhicContributionER]])","v":0},null,null,null,null,{"$f":"SUM(PayrollSum[[#This Row],[DeMinimisBenefit]:[OtherNonTaxableIncome]])","v":0},null,null,null,null,null,null,null,null,null,null,null,null,null,null,null,null,null,null,null,null,null,null,null,null,null,null,null,null,null,null,null,null,null,null,null,null,null,null,null,null,null,null,null,null,null,null,null,null,null,null,null,null,null,null,null,null,null,null,null,null,null,null,null,null,null,null,null,null,null,null,null,null,null,"Y"]
[null,null,null,null,null,null,null,null,null,null,null,{"$f":"SUM(PayrollSum[[#This Row],[BasicPay]:[NightShiftDifferential]])-PayrollSum[[#This Row],[LatesAndAbsences]]","v":0},null,null,null,null,null,null,null,null,null,null,null,null,null,null,null,null,null,null,{"$f":"SUM(PayrollSum[[#This Row],[Salaries2]:[MapColumn10Addition]])","v":0},null,null,null,null,null,null,null,null,null,null,null,null,null,null,{"$f":"SUM(PayrollSum[[#This Row],[MapColumn1Deduction]:[PhicContributionEE]])","v":0},{"$f":"+PayrollSum[[#This Row],[GCI]]-PayrollSum[[#This Row],[TotalDeduction]]","v":0},null,null,null,null,{"$f":"SUM(PayrollSum[[#This Row],[SssContributionER]:[PhicContributionER]])","v":0},null,null,null,null,{"$f":"SUM(PayrollSum[[#This Row],[DeMinimisBenefit]:[OtherNonTaxableIncome]])","v":0},null,null,null,null,null,null,null,null,null,null,null,null,null,null,null,null,null,null,null,null,null,null,null,null,null,null,null,null,null,null,null,null,null,null,null,null,null,null,null,null,null,null,null,null,null,null,null,null,null,null,null,null,null,null,null,null,null,null,null,null,null,null,null,null,null,null,null,null,null,null,null,null,null,"Y"]
[null,null,null,null,null,null,null,null,null,null,null,{"$f":"SUM(PayrollSum[[#This Row],[BasicPay]:[NightShiftDifferential]])-PayrollSum[[#This Row],[LatesAndAbsences]]","v":0},null,null,null,null,null,null,null,null,null,null,null,null,null,null,null,null,null,null,{"$f":"SUM(PayrollSum[[#This Row],[Salaries2]:[MapColumn10Addition]])","v":0},null,null,null,null,null,null,null,null,null,null,null,null,null,null,{"$f":"SUM(PayrollSum[[#This Row],[MapColumn1Deduction]:[PhicContributionEE]])","v":0},{"$f":"+PayrollSum[[#This Row],[GCI]]-PayrollSum[[#This Row],[TotalDeduction]]","v":0},null,null,null,null,{"$f":"SUM(PayrollSum[[#This Row],[SssContributionER]:[PhicContributionER]])","v":0},null,null,null,null,{"$f":"SUM(PayrollSum[[#This Row],[DeMinimisBenefit]:[OtherNonTaxableIncome]])","v":0},null,null,null,null,null,null,null,null,null,null,null,null,null,null,null,null,null,null,null,null,null,null,null,null,null,null,null,null,null,null,null,null,null,null,null,null,null,null,null,null,null,null,null,null,null,null,null,null,null,null,null,null,null,null,null,null,null,null,null,null,null,null,null,null,null,null,null,null,null,null,null,null,null,"Y"]
[null,null,null,null,null,null,null,null,null,null,null,{"$f":"SUM(PayrollSum[[#This Row],[BasicPay]:[NightShiftDifferential]])-PayrollSum[[#This Row],[LatesAndAbsences]]","v":0},null,null,null,null,null,null,null,null,null,null,null,null,null,null,null,null,null,null,{"$f":"SUM(PayrollSum[[#This Row],[Salaries2]:[MapColumn10Addition]])","v":0},null,null,null,null,null,null,null,null,null,null,null,null,null,null,{"$f":"SUM(PayrollSum[[#This Row],[MapColumn1Deduction]:[PhicContributionEE]])","v":0},{"$f":"+PayrollSum[[#This Row],[GCI]]-PayrollSum[[#This Row],[TotalDeduction]]","v":0},null,null,null,null,{"$f":"SUM(PayrollSum[[#This Row],[SssContributionER]:[PhicContributionER]])","v":0},null,null,null,null,{"$f":"SUM(PayrollSum[[#This Row],[DeMinimisBenefit]:[OtherNonTaxableIncome]])","v":0},null,null,null,null,null,null,null,null,null,null,null,null,null,null,null,null,null,null,null,null,null,null,null,null,null,null,null,null,null,null,null,null,null,null,null,null,null,null,null,null,null,null,null,null,null,null,null,null,null,null,null,null,null,null,null,null,null,null,null,null,null,null,null,null,null,null,null,null,null,null,null,null,null,"Y"]
[null,null,null,null,null,null,null,null,null,null,null,{"$f":"SUM(PayrollSum[[#This Row],[BasicPay]:[NightShiftDifferential]])-PayrollSum[[#This Row],[LatesAndAbsences]]","v":0},null,null,null,null,null,null,null,null,null,null,null,null,null,null,null,null,null,null,{"$f":"SUM(PayrollSum[[#This Row],[Salaries2]:[MapColumn10Addition]])","v":0},null,null,null,null,null,null,null,null,null,null,null,null,null,null,{"$f":"SUM(PayrollSum[[#This Row],[MapColumn1Deduction]:[PhicContributionEE]])","v":0},{"$f":"+PayrollSum[[#This Row],[GCI]]-PayrollSum[[#This Row],[TotalDeduction]]","v":0},null,null,null,null,{"$f":"SUM(PayrollSum[[#This Row],[SssContributionER]:[PhicContributionER]])","v":0},null,null,null,null,{"$f":"SUM(PayrollSum[[#This Row],[DeMinimisBenefit]:[OtherNonTaxableIncome]])","v":0},null,null,null,null,null,null,null,null,null,null,null,null,null,null,null,null,null,null,null,null,null,null,null,null,null,null,null,null,null,null,null,null,null,null,null,null,null,null,null,null,null,null,null,null,null,null,null,null,null,null,null,null,null,null,null,null,null,null,null,null,null,null,null,null,null,null,null,null,null,null,null,null,null,"Y"]
[null,null,null,null,null,null,null,null,null,null,null,{"$f":"SUM(PayrollSum[[#This Row],[BasicPay]:[NightShiftDifferential]])-PayrollSum[[#This Row],[LatesAndAbsences]]","v":0},null,null,null,null,null,null,null,null,null,null,null,null,null,null,null,null,null,null,{"$f":"SUM(PayrollSum[[#This Row],[Salaries2]:[MapColumn10Addition]])","v":0},null,null,null,null,null,null,null,null,null,null,null,null,null,null,{"$f":"SUM(PayrollSum[[#This Row],[MapColumn1Deduction]:[PhicContributionEE]])","v":0},{"$f":"+PayrollSum[[#This Row],[GCI]]-PayrollSum[[#This Row],[TotalDeduction]]","v":0},null,null,null,null,{"$f":"SUM(PayrollSum[[#This Row],[SssContributionER]:[PhicContributionER]])","v":0},null,null,null,null,{"$f":"SUM(PayrollSum[[#This Row],[DeMinimisBenefit]:[OtherNonTaxableIncome]])","v":0},null,null,null,null,null,null,null,null,null,null,null,null,null,null,null,null,null,null,null,null,null,null,null,null,null,null,null,null,null,null,null,null,null,null,null,null,null,null,null,null,null,null,null,null,null,null,null,null,null,null,null,null,null,null,null,null,null,null,null,null,null,null,null,null,null,null,null,null,null,null,null,null,null,"Y"]
[null,null,null,null,null,null,null,null,null,null,null,{"$f":"SUM(PayrollSum[[#This Row],[BasicPay]:[NightShiftDifferential]])-PayrollSum[[#This Row],[LatesAndAbsences]]","v":0},null,null,null,null,null,null,null,null,null,null,null,null,null,null,null,null,null,null,{"$f":"SUM(PayrollSum[[#This Row],[Salaries2]:[MapColumn10Addition]])","v":0},null,null,null,null,null,null,null,null,null,null,null,null,null,null,{"$f":"SUM(PayrollSum[[#This Row],[MapColumn1Deduction]:[PhicContributionEE]])","v":0},{"$f":"+PayrollSum[[#This Row],[GCI]]-PayrollSum[[#This Row],[TotalDeduction]]","v":0},null,null,null,null,{"$f":"SUM(PayrollSum[[#This Row],[SssContributionER]:[PhicContributionER]])","v":0},null,null,null,null,{"$f":"SUM(PayrollSum[[#This Row],[DeMinimisBenefit]:[OtherNonTaxableIncome]])","v":0},null,null,null,null,null,null,null,null,null,null,null,null,null,null,null,null,null,null,null,null,null,null,null,null,null,null,null,null,null,null,null,null,null,null,null,null,null,null,null,null,null,null,null,null,null,null,null,null,null,null,null,null,null,null,null,null,null,null,null,null,null,null,null,null,null,null,null,null,null,null,null,null,null,"Y"]
[null,null,null,null,null,null,null,null,null,null,null,{"$f":"SUM(PayrollSum[[#This Row],[BasicPay]:[NightShiftDifferential]])-PayrollSum[[#This Row],[LatesAndAbsences]]","v":0},null,null,null,null,null,null,null,null,null,null,null,null,null,null,null,null,null,null,{"$f":"SUM(PayrollSum[[#This Row],[Salaries2]:[MapColumn10Addition]])","v":0},null,null,null,null,null,null,null,null,null,null,null,null,null,null,{"$f":"SUM(PayrollSum[[#This Row],[MapColumn1Deduction]:[PhicContributionEE]])","v":0},{"$f":"+PayrollSum[[#This Row],[GCI]]-PayrollSum[[#This Row],[TotalDeduction]]","v":0},null,null,null,null,{"$f":"SUM(PayrollSum[[#This Row],[SssContributionER]:[PhicContributionER]])","v":0},null,null,null,null,{"$f":"SUM(PayrollSum[[#This Row],[DeMinimisBenefit]:[OtherNonTaxableIncome]])","v":0},null,null,null,null,null,null,null,null,null,null,null,null,null,null,null,null,null,null,null,null,null,null,null,null,null,null,null,null,null,null,null,null,null,null,null,null,null,null,null,null,null,null,null,null,null,null,null,null,null,null,null,null,null,null,null,null,null,null,null,null,null,null,null,null,null,null,null,null,null,null,null,null,null,"Y"]
[null,null,null,null,"Totals",{"$f":"SUBTOTAL(109,PayrollSum[TakeHomePay])","v":0},{"$f":"SUBTOTAL(109,PayrollSum[BasicPay])","v":0},{"$f":"SUBTOTAL(109,PayrollSum[OvertimePay])","v":0},{"$f":"SUBTOTAL(109,PayrollSum[HolidayPay])","v":0},{"$f":"SUBTOTAL(109,PayrollSum[NightShiftDifferential])","v":0},{"$f":"SUBTOTAL(109,PayrollSum[LatesAndAbsences])","v":0},{"$f":"SUBTOTAL(109,PayrollSum[Salaries2])","v":0},{"$f":"SUBTOTAL(109,PayrollSum[PERA])","v":0},{"$f":"SUBTOTAL(109,PayrollSum[RATA])","v":0},{"$f":"SUBTOTAL(109,PayrollSum[COLA])","v":0},{"$f":"SUBTOTAL(109,PayrollSum[HazardPay])","v":0},{"$f":"SUBTOTAL(109,PayrollSum[SLVL])","v":0},{"$f":"SUBTOTAL(109,PayrollSum[Bonus])","v":0},{"$f":"SUBTOTAL(109,PayrollSum[Month13Pay])","v":0},{"$f":"SUBTOTAL(109,PayrollSum[ServiceCharge])","v":0},{"$f":"SUBTOTAL(109,PayrollSum[MapColumn1Addition])","v":0},{"$f":"SUBTOTAL(109,PayrollSum[MapColumn2Addition])","v":0},{"$f":"SUBTOTAL(109,PayrollSum[MapColumn3Addition])","v":0},{"$f":"SUBTOTAL(109,PayrollSum[MapColumn4Addition])","v":0},{"$f":"SUBTOTAL(109,PayrollSum[MapColumn5Addition])","v":0},{"$f":"SUBTOTAL(109,PayrollSum[MapColumn6Addition])","v":0},{"$f":"SUBTOTAL(109,PayrollSum[MapColumn7Addition])","v":0},{"$f":"SUBTOTAL(109,PayrollSum[MapColumn8Addition])","v":0},{"$f":"SUBTOTAL(109,PayrollSum[MapColumn9Addition])","v":0},{"$f":"SUBTOTAL(109,PayrollSum[MapColumn10Addition])","v":0},{"$f":"SUBTOTAL(109,PayrollSum[GCI])","v":0},{"$f":"SUBTOTAL(109,PayrollSum[MapColumn1Deduction])","v":0},{"$f":"SUBTOTAL(109,PayrollSum[MapColumn2Deduction])","v":0},{"$f":"SUBTOTAL(109,PayrollSum[MapColumn3Deduction])","v":0},{"$f":"SUBTOTAL(109,PayrollSum[MapColumn4Deduction])","v":0},{"$f":"SUBTOTAL(109,PayrollSum[MapColumn5Deduction])","v":0},{"$f":"SUBTOTAL(109,PayrollSum[MapColumn6Deduction])","v":0},{"$f":"SUBTOTAL(109,PayrollSum[MapColumn7Deduction])","v":0},{"$f":"SUBTOTAL(109,PayrollSum[MapColumn8Deduction])","v":0},{"$f":"SUBTOTAL(109,PayrollSum[MapColumn9Deduction])","v":0},{"$f":"SUBTOTAL(109,PayrollSum[MapColumn10Deduction])","v":0},{"$f":"SUBTOTAL(109,PayrollSum[WTax])","v":0},{"$f":"SUBTOTAL(109,PayrollSum[SssContributionEE])","v":0},{"$f":"SUBTOTAL(109,PayrollSum[PagibigContributionEE])","v":0},{"$f":"SUBTOTAL(109,PayrollSum[PhicContributionEE])","v":0},{"$f":"SUBTOTAL(109,PayrollSum[TotalDeduction])","v":0},{"$f":"SUBTOTAL(109,PayrollSum[NetPay])","v":0},{"$f":"SUBTOTAL(109,PayrollSum[SssContributionER])","v":0},{"$f":"SUBTOTAL(109,PayrollSum[EC])","v":0},{"$f":"SUBTOTAL(109,PayrollSum[PagibigContributionER])","v":0},{"$f":"SUBTOTAL(109,PayrollSum[PhicContributionER])","v":0},{"$f":"SUBTOTAL(109,PayrollSum[TotalEmployerContr])","v":0},{"$f":"SUBTOTAL(109,PayrollSum[DeMinimisBenefit])","v":0},{"$f":"SUBTOTAL(109,PayrollSum[TaxFreeThresholdIncome])","v":0},{"$f":"SUBTOTAL(109,PayrollSum[OtherTaxableIncome])","v":0},{"$f":"SUBTOTAL(109,PayrollSum[OtherNonTaxableIncome])","v":0},{"$f":"SUBTOTAL(109,PayrollSum[TotalAddlPayDetail])","v":0},null,null,null,null,null,null,{"$f":"SUBTOTAL(109,PayrollSum[PaydayRate])","v":0},{"$f":"SUBTOTAL(109,PayrollSum[DailyRate])","v":0},{"$f":"SUBTOTAL(109,PayrollSum[HourlyRate])","v":0},{"$f":"SUBTOTAL(109,PayrollSum[DaysWorked])","v":0},{"$f":"SUBTOTAL(109,PayrollSum[DaysOT])","v":0},{"$f":"SUBTOTAL(109,PayrollSum[DaysOOT])","v":0},{"$f":"SUBTOTAL(109,PayrollSum[Hrs_Late])","v":0},{"$f":"SUBTOTAL(109,PayrollSum[Lates])","v":0},{"$f":"SUBTOTAL(109,PayrollSum[Days_Absence])","v":0},{"$f":"SUBTOTAL(109,PayrollSum[Absences])","v":0},{"$f":"SUBTOTAL(109,PayrollSum[Hrs_RT_RegDay])","v":0},{"$f":"SUBTOTAL(109,PayrollSum[Hrs_OT_RegDay])","v":0},{"$f":"SUBTOTAL(109,PayrollSum[Hrs_ND_RegDay])","v":0},{"$f":"SUBTOTAL(109,PayrollSum[Hrs_OTND_RegDay])","v":0},{"$f":"SUBTOTAL(109,PayrollSum[RT_RegDay])","v":0},{"$f":"SUBTOTAL(109,PayrollSum[OT_RegDay])","v":0},{"$f":"SUBTOTAL(109,PayrollSum[ND_RegDay])","v":0},{"$f":"SUBTOTAL(109,PayrollSum[OTND_RegDay])","v":0},{"$f":"SUBTOTAL(109,PayrollSum[Hrs_RT_RestDay])","v":0},{"$f":"SUBTOTAL(109,PayrollSum[Hrs_OT_RestDay])","v":0},{"$f":"SUBTOTAL(109,PayrollSum[Hrs_ND_RestDay])","v":0},{"$f":"SUBTOTAL(109,PayrollSum[Hrs_OTND_RestDay])","v":0},{"$f":"SUBTOTAL(109,PayrollSum[RT_RestDay])","v":0},{"$f":"SUBTOTAL(109,PayrollSum[OT_RestDay])","v":0},{"$f":"SUBTOTAL(109,PayrollSum[ND_RestDay])","v":0},{"$f":"SUBTOTAL(109,PayrollSum[OTND_RestDay])","v":0},{"$f":"SUBTOTAL(109,PayrollSum[Hrs_RT_Holiday])","v":0},{"$f":"SUBTOTAL(109,PayrollSum[Hrs_OT_Holiday])","v":0},{"$f":"SUBTOTAL(109,PayrollSum[Hrs_ND_Holiday])","v":0},{"$f":"SUBTOTAL(109,PayrollSum[Hrs_OTND_Holiday])","v":0},{"$f":"SUBTOTAL(109,PayrollSum[RT_Holiday])","v":0},{"$f":"SUBTOTAL(109,PayrollSum[OT_Holiday])","v":0},{"$f":"SUBTOTAL(109,PayrollSum[ND_Holiday])","v":0},{"$f":"SUBTOTAL(109,PayrollSum[OTND_Holiday])","v":0},{"$f":"SUBTOTAL(109,PayrollSum[Hrs_RT_HolidayRestDay])","v":0},{"$f":"SUBTOTAL(109,PayrollSum[Hrs_OT_HolidayRestDay])","v":0},{"$f":"SUBTOTAL(109,PayrollSum[Hrs_ND_HolidayRestDay])","v":0},{"$f":"SUBTOTAL(109,PayrollSum[Hrs_OTND_HolidayRestDay])","v":0},{"$f":"SUBTOTAL(109,PayrollSum[RT_HolidayRestDay])","v":0},{"$f":"SUBTOTAL(109,PayrollSum[OT_HolidayRestDay])","v":0},{"$f":"SUBTOTAL(109,PayrollSum[ND_HolidayRestDay])","v":0},{"$f":"SUBTOTAL(109,PayrollSum[OTND_HolidayRestDay])","v":0},{"$f":"SUBTOTAL(109,PayrollSum[Hrs_RT_SpecialDay])","v":0},{"$f":"SUBTOTAL(109,PayrollSum[Hrs_OT_SpecialDay])","v":0},{"$f":"SUBTOTAL(109,PayrollSum[Hrs_ND_SpecialDay])","v":0},{"$f":"SUBTOTAL(109,PayrollSum[Hrs_OTND_SpecialDay])","v":0},{"$f":"SUBTOTAL(109,PayrollSum[RT_SpecialDay])","v":0},{"$f":"SUBTOTAL(109,PayrollSum[OT_SpecialDay])","v":0},{"$f":"SUBTOTAL(109,PayrollSum[ND_SpecialDay])","v":0},{"$f":"SUBTOTAL(109,PayrollSum[OTND_SpecialDay])","v":0},{"$f":"SUBTOTAL(109,PayrollSum[Hrs_RT_SpecialDayRestDay])","v":0},{"$f":"SUBTOTAL(109,PayrollSum[Hrs_OT_SpecialDayRestDay])","v":0},{"$f":"SUBTOTAL(109,PayrollSum[Hrs_ND_SpecialDayRestDay])","v":0},{"$f":"SUBTOTAL(109,PayrollSum[Hrs_OTND_SpecialDayRestDay])","v":0},{"$f":"SUBTOTAL(109,PayrollSum[RT_SpecialDayRestDay])","v":0},{"$f":"SUBTOTAL(109,PayrollSum[OT_SpecialDayRestDay])","v":0},{"$f":"SUBTOTAL(109,PayrollSum[ND_SpecialDayRestDay])","v":0},{"$f":"SUBTOTAL(109,PayrollSum[OTND_SpecialDayRestDay])","v":0},{"$f":"SUBTOTAL(109,PayrollSum[Days_HolidayPay])","v":0},{"$f":"SUBTOTAL(109,PayrollSum[Days_SL_Taxable])","v":0},{"$f":"SUBTOTAL(109,PayrollSum[Days_SL_NonTaxable])","v":0},{"$f":"SUBTOTAL(109,PayrollSum[Days_VL_Taxable])","v":0},{"$f":"SUBTOTAL(109,PayrollSum[Days_VL_NonTaxable])","v":0},{"$f":"SUBTOTAL(109,PayrollSum[SL_NonTaxable])","v":0},{"$f":"SUBTOTAL(109,PayrollSum[VL_NonTaxable])","v":0},{"$f":"SUBTOTAL(109,PayrollSum[SL_Taxable])","v":0},{"$f":"SUBTOTAL(109,PayrollSum[VL_Taxable])","v":0}]
[]
[]
[null,null,null,"JOURNAL ENTRY:"]

{"sheet":"_hidePayslip","index":2,"n_rows":140,"n_cols":26,"rows_kept":140,"cut":false,"hidden":false,"merged":[]}
["This sample uses two payslip templates. The system fills up the table in cell X11 using the primary key EmpID. See MailMergeSchema"]
["The template from column L is linked via formula to the table in X11. In cells L14 and P62, comments \"_CopyRange\" is inserted to define the copy range"]
["Then fills up the template from column A-J using copy/paste cell range. In cell A14 a comment \"_PasteRange\" is inserted to define the paste starting range."]
["Rows are hidded when the value of cells in column K is Y. This is implement using the comment _HideRow in column K1. Only unhidden rows are copied when copy/paste is implemented"]
["All columns from K and onwards will be hidden using the comment _HideTheseColumn in column K1 also."]
[]
["@CoName",null,null,null,null,null,null,null,null,null,null,"@CoName"]
["Name of Employee: ",{"$f":"Y15","v":0},null,null,null,null,null,null,null,null,null,"Name of Employee: ",{"$f":"Y15","v":0}]
["Pay Period: ",{"$f":"Y13","v":0},null,null,null,null,null,null,null,null,null,"Pay Period: ",{"$f":"Y13","v":0}]
[null,null,"Worked",null,null,null,null,null,null,null,null,null,null,"Worked",null,null,null,null,null,null,null,null,null,"This table will be filled-up like a form. The column will be transposed into row. The \"_ColumnName\" is the key for formview"]
[null,"Rate","Days/Hrs","Amount",null,null,"DEDUCTIONS",null,null,"Amount",null,null,"Rate","Days/Hrs","Amount",null,null,"DEDUCTIONS",null,null,"Amount",null,null,"_ColumnName","Value","_TableName(PayrollSum)"]
["Rate/Day",{"$f":"Y75","v":0},{"$f":"Y84","v":0},{"$f":"Y88","v":0},null,null,"SSS/GSIS Contri",null,null,{"$f":"Y52","v":0},null,"Rate/Day",{"$f":"Y75","v":0},{"$f":"Y84","v":0},{"$f":"Y88","v":0},"Y",null,"SSS/GSIS Contri",null,null,{"$f":"Y52","v":0},null,null,"DocNo"]
["Rate/Hour",{"$f":"Y76","v":0},null,null,null,null,"Pag-ibig Contri",null,null,{"$f":"Y53","v":0},null,"Rate/Hour",{"$f":"Y76","v":0},null,null,"Y",null,"Pag-ibig Contri",null,null,{"$f":"Y53","v":0},null,null,"PayDesc"]
[null,null,null,null,null,null,"Philhealth/EC Contri",null,null,{"$f":"Y54","v":0},null,"Reg.OT/Hour",{"$f":"$M$13*1.25","v":0},{"$f":"Y85","v":0},{"$f":"Y89","v":0},{"$f":"IF(O14=0,\"\",\"Y\")","v":""},null,"Philhealth/EC Contri",null,null,{"$f":"Y54","v":0},null,null,"EmpID"]
[null,null,null,null,null,null,"WTax",null,null,{"$f":"Y55","v":0},null,"Reg ND(10%)",{"$f":"M13*0.1","v":0},{"$f":"Y86","v":0},{"$f":"Y90","v":0},{"$f":"IF(O15=0,\"\",\"Y\")","v":""},null,"WTax",null,null,{"$f":"Y55","v":0},null,null,"EmpName"]
[null,null,null,null,null,null,"Other Deductions:",null,null,null,null,"Reg - ND_OT",{"$f":"+M13*1.375","v":0},{"$f":"Y87","v":0},{"$f":"Y91","v":0},"",null,"Other Deductions:",null,null,null,null,null,"TakeHomePay"]
[null,null,null,null,null,null,"Description","Total","Balance",null,null,"RD/ (1st 8hrs)",{"$f":"M13*1.3","v":0},{"$f":"Y92","v":0},{"$f":"Y96","v":0},"",null,"Description","Total","Balance",null,{"$f":"IF(U19=0,\"\",\"Y\")","v":""},null,"BasicPay"]
[null,null,null,null,null,null,null,null,null,null,null,null,null,null,null,"",null,"DeductionTypeID","TotalAmount","Balance","Amount","_TableName(Deductions)",null,"OvertimePay"]
[null,null,null,null,null,null,null,null,null,null,{"$f":"IF(J19+D19=0,\"Y\",\"\")","v":"Y"},"RD (after 8hrs)",{"$f":"M13*1.69","v":0},{"$f":"Y93","v":0},{"$f":"Y97","v":0},"",null,null,null,null,null,{"$f":"IF(U19=0,\"\",\"Y\")","v":""},null,"HolidayPay"]
[null,null,null,null,null,null,null,null,null,null,{"$f":"IF(J20+D20=0,\"Y\",\"\")","v":"Y"},"RD - ND(10%)",{"$f":"M13*0.13","v":0},{"$f":"Y94","v":0},{"$f":"Y98","v":0},"",null,null,null,null,null,"",null,"NightShiftDifferential"]
[null,null,null,null,null,null,null,null,null,null,"Y","RD - ND_OT",{"$f":"M13*1.859","v":0},{"$f":"Y95","v":0},{"$f":"Y99","v":0},"",null,null,null,null,null,"",null,"LatesAndAbsences"]
[null,null,null,null,null,null,null,null,null,null,"Y","LH (1st 8hrs)x1",{"$f":"M13*1","v":0},{"$f":"Y100","v":0},{"$f":"Y104","v":0},"",null,null,null,null,null,"",null,"Salaries2"]
[null,null,null,null,null,null,null,null,null,null,"Y","LH (after 8hrs)",{"$f":"M13*2.6","v":0},{"$f":"Y101","v":0},{"$f":"Y105","v":0},"",null,null,null,null,null,"",null,"PERA"]
[null,null,null,null,null,null,null,null,null,null,"Y","LH ND(10%)",{"$f":"M13*0.2","v":0},{"$f":"Y102","v":0},{"$f":"Y106","v":0},"",null,null,null,null,null,"",null,"RATA"]
[null,null,null,null,null,null,null,null,null,null,"Y","LH - ND_OT",{"$f":"M13*2.86","v":0},{"$f":"Y103","v":0},{"$f":"Y107","v":0},"",null,null,null,null,null,"",null,"COLA"]
[null,null,null,null,null,null,null,null,null,null,"Y","LH_RD (1st 8hrs)",{"$f":"M13*2.6","v":0},{"$f":"Y108","v":0},{"$f":"Y112","v":0},"",null,null,null,null,null,"",null,"HazardPay"]
[null,null,null,null,null,null,null,null,null,null,"Y","LH_RD (after 8hrs)",{"$f":"M13*3.38","v":0},{"$f":"Y109","v":0},{"$f":"Y113","v":0},"",null,null,null,null,null,{"$f":"IF(U27=0,\"\",\"Y\")","v":""},null,"ServiceCharge"]
[null,null,null,null,null,null,null,null,null,null,"Y","LH_RD ND(10%)",{"$f":"+M13*0.26","v":0},{"$f":"Y110","v":0},{"$f":"Y114","v":0},"",null,null,null,null,null,"",null,"SLVL"]
[null,null,null,null,null,null,null,null,null,null,"Y","LH_RD ND_OT",{"$f":"M13*3.718","v":0},{"$f":"Y111","v":0},{"$f":"Y115","v":0},"",null,null,null,null,null,null,null,"Bonus"]
[null,null,null,null,null,null,null,null,null,null,"Y","SH_RD (1st 8hrs)",{"$f":"M13*1.5","v":0},{"$f":"Y116","v":0},{"$f":"Y120","v":0},"",null,null,null,null,null,null,null,"Month13Pay"]
[null,null,null,null,null,null,null,null,null,null,"Y","SH_RD (after 8hrs)",{"$f":"M13*1.95","v":0},{"$f":"Y117","v":0},{"$f":"Y121","v":0},"",null,null,null,null,null,null,null,"MapColumn1Addition"]
[null,null,null,null,null,null,null,null,null,null,"Y","SH_RD ND(10%)",{"$f":"+M13*0.15","v":0},{"$f":"Y118","v":0},{"$f":"Y122","v":0},"",null,null,null,null,null,null,null,"MapColumn2Addition"]
[null,null,null,null,null,null,null,null,null,null,"Y","SH_RD ND_OT",{"$f":"M13*2.145","v":0},{"$f":"Y119","v":0},{"$f":"Y123","v":0},"",null,null,null,null,null,null,null,"MapColumn3Addition"]
[null,null,null,null,null,null,null,null,null,null,"Y","SH (1st 8hrs)",{"$f":"$M13*1.25","v":0},{"$f":"Y124","v":0},{"$f":"Y128","v":0},"",null,null,null,null,null,null,null,"MapColumn4Addition"]
[null,null,null,null,null,null,null,null,null,null,"Y","SH (after 8hrs)",{"$f":"M13*0.1","v":0},{"$f":"Y125","v":0},{"$f":"Y129","v":0},"",null,null,null,null,null,null,null,"MapColumn5Addition"]
[null,null,null,null,null,null,null,null,null,null,"Y","SH - ND(10%)",{"$f":"+M13*1.375","v":0},{"$f":"Y126","v":0},{"$f":"Y130","v":0},"",null,null,null,null,null,null,null,"MapColumn6Addition"]
[null,null,null,null,null,null,null,null,null,null,"Y","SH - ND_OT",{"$f":"M13*1.3","v":0},{"$f":"Y127","v":0},{"$f":"Y131","v":0},"",null,null,null,null,null,null,null,"MapColumn7Addition"]
[null,null,null,null,null,null,null,null,null,null,"Y","Less: Lates",{"$f":"+M13","v":0},{"$f":"Y80","v":0},{"$f":"-Y81","v":0},"",null,null,null,null,null,null,null,"MapColumn8Addition"]
[null,null,null,null,null,null,null,null,null,null,"Y","        Absences",{"$f":"+M12","v":0},{"$f":"Y82","v":0},{"$f":"-Y83","v":0},"",null,null,null,null,null,null,null,"MapColumn9Addition"]
[null,null,null,null,null,null,null,null,null,null,"Y","Salaries and Wages",null,null,{"$f":"SUM(O12:O39)","v":0},"Y",null,null,null,null,null,null,null,"MapColumn10Addition"]
[null,null,null,null,null,null,null,null,null,null,"Y","Additioanl Compensations:",null,null,null,"Y",null,null,null,null,null,null,null,"GCI"]
[null,null,null,null,null,null,null,null,null,null,"Y","PERA",null,null,{"$f":"Y23","v":0},"",null,null,null,null,null,null,null,"MapColumn1Deduction"]
[null,null,null,null,null,null,null,null,null,null,"Y","RATA",null,null,{"$f":"Y24","v":0},"",null,null,null,null,null,null,null,"MapColumn2Deduction"]
[null,null,null,null,null,null,null,null,null,null,"Y","COLA",null,null,0,"",null,null,null,null,null,null,null,"MapColumn3Deduction"]
[null,null,null,null,null,null,null,null,null,null,"Y","Hazard Pay",null,null,0,"",null,null,null,null,null,null,null,"MapColumn4Deduction"]
[null,null,null,null,null,null,null,null,null,null,"Y","Service Charge",null,null,0,"",null,null,null,null,null,null,null,"MapColumn5Deduction"]
[null,null,null,null,null,null,null,null,null,null,"Y","SL/VL",null,null,0,"",null,null,null,null,null,null,null,"MapColumn6Deduction"]
[null,null,null,null,null,null,null,null,null,null,"Y","Bonus",null,null,0,"",null,null,null,null,null,null,null,"MapColumn7Deduction"]
[null,null,null,null,null,null,null,null,null,null,"Y","13th Month",null,null,0,"",null,null,null,null,null,null,null,"MapColumn8Deduction"]
[null,null,null,null,null,null,null,null,null,null,"Y","AdditionTypeID","TaxCat","Column1","Amount","_TableName(AdditionalCompensation)",null,null,null,null,null,null,null,"MapColumn9Deduction"]
[null,null,null,null,null,null,null,null,null,null,"Y",null,null,null,null,{"$f":"IF(O51=0,\"\",\"Y\")","v":""},null,null,null,null,null,null,null,"MapColumn10Deduction"]
[null,null,null,null,null,null,null,null,null,null,"Y",null,null,null,null,"",null,null,null,null,null,null,null,"SssContributionEE"]
[null,null,null,null,null,null,null,null,null,null,"Y",null,null,null,null,"",null,null,null,null,null,null,null,"PagibigContributionEE"]
[null,null,null,null,null,null,null,null,null,null,"Y",null,null,null,null,"",null,null,null,null,null,null,null,"PhicContributionEE"]
[null,null,null,null,null,null,null,null,null,null,"Y",null,null,null,null,"",null,null,null,null,null,null,null,"WTax"]
[null,null,null,null,null,null,null,null,null,null,"Y",null,null,null,null,"",null,null,null,null,null,null,null,"TotalDeduction"]
[null,null,null,null,null,null,null,null,null,null,"Y",null,null,null,null,"",null,null,null,null,null,null,null,"NetPay"]
[null,null,null,null,null,null,null,null,null,null,"Y",null,null,null,null,"",null,null,null,null,null,null,null,"SssContributionER"]
[null,null,null,null,null,null,null,null,null,null,"Y",null,null,null,null,"",null,null,null,null,null,null,null,"EC"]
[null,null,null,null,null,null,null,null,null,null,"Y",null,null,null,null,"",null,null,null,null,null,null,null,"PagibigContributionER"]
[null,null,null,null,null,null,null,null,null,null,"Y",null,null,null,null,"",null,null,null,null,null,null,null,"PhicContributionER"]
[null,null,null,null,null,null,null,null,null,null,"Y",null,null,null,null,null,null,null,null,null,null,null,null,"TotalEmployerContr"]
["TOTAL",null,null,{"$f":"+O63","v":0},null,null,"TOTAL",null,null,{"$f":"SUM(J12:J62)","v":0},null,"TOTAL",null,null,{"$f":"SUM(O40:O62)","v":0},null,null,"Total",null,null,{"$f":"SUM(U12:U62)","v":0},null,{"$f":"IF(O63=0,\"Y\",\"\")","v":"Y"},"DeMinimisBenefit"]
[null,null,null,null,null,null,null,null,null,null,null,null,null,null,null,null,null,null,null,null,null,null,"Y","TaxFreeThresholdIncome"]
["TAKE HOME PAY",null,null,{"$f":"+D63-J63","v":0},null,null,null,null,null,null,null,"TAKE HOME PAY",null,null,{"$f":"+O63-U63","v":0},null,null,null,null,null,null,null,"Y","OtherTaxableIncome"]
[null,null,null,null,null,null,null,null,null,null,null,null,null,null,null,null,null,null,null,null,null,null,null,"OtherNonTaxableIncome"]
[null,null,null,null,null,null,null,null,null,null,null,null,null,null,null,null,null,null,null,null,null,null,null,"TotalAddlPayDetail"]
[null,null,null,null,null,null,null,null,null,null,null,null,null,null,null,null,null,null,null,null,null,null,null,"PayTaxTypeID"]
[null,null,null,null,null,null,null,null,null,null,null,null,null,null,null,null,null,null,null,null,null,null,null,"DeptID"]
[null,null,null,null,null,null,null,null,null,null,null,null,null,null,null,null,null,null,null,null,null,null,null,"DeptName"]
[null,null,null,null,null,null,null,null,null,null,null,null,null,null,null,null,null,null,null,null,null,null,null,"ContractNo"]
[null,null,null,null,null,null,null,null,null,null,null,null,null,null,null,null,null,null,null,null,null,null,null,"PayYear"]
[null,null,null,null,null,null,null,null,null,null,null,null,null,null,null,null,null,null,null,null,null,null,null,"PayMonth"]
[null,null,null,null,null,null,null,null,null,null,null,null,null,null,null,null,null,null,null,null,null,null,null,"PaydayRate"]
[null,null,null,null,null,null,null,null,null,null,null,null,null,null,null,null,null,null,null,null,null,null,null,"DailyRate"]
[null,null,null,null,null,null,null,null,null,null,null,null,null,null,null,null,null,null,null,null,null,null,null,"HourlyRate"]
[null,null,null,null,null,null,null,null,null,null,null,null,null,null,null,null,null,null,null,null,null,null,null,"DaysWorked"]
[null,null,null,null,null,null,null,null,null,null,null,null,null,null,null,null,null,null,null,null,null,null,null,"DaysOT"]
[null,null,null,null,null,null,null,null,null,null,null,null,null,null,null,null,null,null,null,null,null,null,null,"DaysOOT"]
[null,null,null,null,null,null,null,null,null,null,null,null,null,null,null,null,null,null,null,null,null,null,null,"Hrs_Late"]
[null,null,null,null,null,null,null,null,null,null,null,null,null,null,null,null,null,null,null,null,null,null,null,"Lates"]
[null,null,null,null,null,null,null,null,null,null,null,null,null,null,null,null,null,null,null,null,null,null,null,"Days_Absence"]
[null,null,null,null,null,null,null,null,null,null,null,null,null,null,null,null,null,null,null,null,null,null,null,"Absences"]
[null,null,null,null,null,null,null,null,null,null,null,null,null,null,null,null,null,null,null,null,null,null,null,"Hrs_RT_RegDay"]
[null,null,null,null,null,null,null,null,null,null,null,null,null,null,null,null,null,null,null,null,null,null,null,"Hrs_OT_RegDay"]
[null,null,null,null,null,null,null,null,null,null,null,null,null,null,null,null,null,null,null,null,null,null,null,"Hrs_ND_RegDay"]
[null,null,null,null,null,null,null,null,null,null,null,null,null,null,null,null,null,null,null,null,null,null,null,"Hrs_OTND_RegDay"]
[null,null,null,null,null,null,null,null,null,null,null,null,null,null,null,null,null,null,null,null,null,null,null,"RT_RegDay"]
[null,null,null,null,null,null,null,null,null,null,null,null,null,null,null,null,null,null,null,null,null,null,null,"OT_RegDay"]
[null,null,null,null,null,null,null,null,null,null,null,null,null,null,null,null,null,null,null,null,null,null,null,"ND_RegDay"]
[null,null,null,null,null,null,null,null,null,null,null,null,null,null,null,null,null,null,null,null,null,null,null,"OTND_RegDay"]
[null,null,null,null,null,null,null,null,null,null,null,null,null,null,null,null,null,null,null,null,null,null,null,"Hrs_RT_RestDay"]
[null,null,null,null,null,null,null,null,null,null,null,null,null,null,null,null,null,null,null,null,null,null,null,"Hrs_OT_RestDay"]
[null,null,null,null,null,null,null,null,null,null,null,null,null,null,null,null,null,null,null,null,null,null,null,"Hrs_ND_RestDay"]
[null,null,null,null,null,null,null,null,null,null,null,null,null,null,null,null,null,null,null,null,null,null,null,"Hrs_OTND_RestDay"]
[null,null,null,null,null,null,null,null,null,null,null,null,null,null,null,null,null,null,null,null,null,null,null,"RT_RestDay"]
[null,null,null,null,null,null,null,null,null,null,null,null,null,null,null,null,null,null,null,null,null,null,null,"OT_RestDay"]
[null,null,null,null,null,null,null,null,null,null,null,null,null,null,null,null,null,null,null,null,null,null,null,"ND_RestDay"]
[null,null,null,null,null,null,null,null,null,null,null,null,null,null,null,null,null,null,null,null,null,null,null,"OTND_RestDay"]
[null,null,null,null,null,null,null,null,null,null,null,null,null,null,null,null,null,null,null,null,null,null,null,"Hrs_RT_Holiday"]
[null,null,null,null,null,null,null,null,null,null,null,null,null,null,null,null,null,null,null,null,null,null,null,"Hrs_OT_Holiday"]
[null,null,null,null,null,null,null,null,null,null,null,null,null,null,null,null,null,null,null,null,null,null,null,"Hrs_ND_Holiday"]
[null,null,null,null,null,null,null,null,null,null,null,null,null,null,null,null,null,null,null,null,null,null,null,"Hrs_OTND_Holiday"]
[null,null,null,null,null,null,null,null,null,null,null,null,null,null,null,null,null,null,null,null,null,null,null,"RT_Holiday"]
[null,null,null,null,null,null,null,null,null,null,null,null,null,null,null,null,null,null,null,null,null,null,null,"OT_Holiday"]
[null,null,null,null,null,null,null,null,null,null,null,null,null,null,null,null,null,null,null,null,null,null,null,"ND_Holiday"]
[null,null,null,null,null,null,null,null,null,null,null,null,null,null,null,null,null,null,null,null,null,null,null,"OTND_Holiday"]
[null,null,null,null,null,null,null,null,null,null,null,null,null,null,null,null,null,null,null,null,null,null,null,"Hrs_RT_HolidayRestDay"]
[null,null,null,null,null,null,null,null,null,null,null,null,null,null,null,null,null,null,null,null,null,null,null,"Hrs_OT_HolidayRestDay"]
[null,null,null,null,null,null,null,null,null,null,null,null,null,null,null,null,null,null,null,null,null,null,null,"Hrs_ND_HolidayRestDay"]
[null,null,null,null,null,null,null,null,null,null,null,null,null,null,null,null,null,null,null,null,null,null,null,"Hrs_OTND_HolidayRestDay"]
[null,null,null,null,null,null,null,null,null,null,null,null,null,null,null,null,null,null,null,null,null,null,null,"RT_HolidayRestDay"]
[null,null,null,null,null,null,null,null,null,null,null,null,null,null,null,null,null,null,null,null,null,null,null,"OT_HolidayRestDay"]
[null,null,null,null,null,null,null,null,null,null,null,null,null,null,null,null,null,null,null,null,null,null,null,"ND_HolidayRestDay"]
[null,null,null,null,null,null,null,null,null,null,null,null,null,null,null,null,null,null,null,null,null,null,null,"OTND_HolidayRestDay"]
[null,null,null,null,null,null,null,null,null,null,null,null,null,null,null,null,null,null,null,null,null,null,null,"Hrs_RT_SpecialDay"]
[null,null,null,null,null,null,null,null,null,null,null,null,null,null,null,null,null,null,null,null,null,null,null,"Hrs_OT_SpecialDay"]
[null,null,null,null,null,null,null,null,null,null,null,null,null,null,null,null,null,null,null,null,null,null,null,"Hrs_ND_SpecialDay"]
[null,null,null,null,null,null,null,null,null,null,null,null,null,null,null,null,null,null,null,null,null,null,null,"Hrs_OTND_SpecialDay"]
[null,null,null,null,null,null,null,null,null,null,null,null,null,null,null,null,null,null,null,null,null,null,null,"RT_SpecialDay"]
[null,null,null,null,null,null,null,null,null,null,null,null,null,null,null,null,null,null,null,null,null,null,null,"OT_SpecialDay"]
[null,null,null,null,null,null,null,null,null,null,null,null,null,null,null,null,null,null,null,null,null,null,null,"ND_SpecialDay"]
[null,null,null,null,null,null,null,null,null,null,null,null,null,null,null,null,null,null,null,null,null,null,null,"OTND_SpecialDay"]
[null,null,null,null,null,null,null,null,null,null,null,null,null,null,null,null,null,null,null,null,null,null,null,"Hrs_RT_SpecialDayRestDay"]
[null,null,null,null,null,null,null,null,null,null,null,null,null,null,null,null,null,null,null,null,null,null,null,"Hrs_OT_SpecialDayRestDay"]
[null,null,null,null,null,null,null,null,null,null,null,null,null,null,null,null,null,null,null,null,null,null,null,"Hrs_ND_SpecialDayRestDay"]
[null,null,null,null,null,null,null,null,null,null,null,null,null,null,null,null,null,null,null,null,null,null,null,"Hrs_OTND_SpecialDayRestDay"]
[null,null,null,null,null,null,null,null,null,null,null,null,null,null,null,null,null,null,null,null,null,null,null,"RT_SpecialDayRestDay"]
[null,null,null,null,null,null,null,null,null,null,null,null,null,null,null,null,null,null,null,null,null,null,null,"OT_SpecialDayRestDay"]
[null,null,null,null,null,null,null,null,null,null,null,null,null,null,null,null,null,null,null,null,null,null,null,"ND_SpecialDayRestDay"]
[null,null,null,null,null,null,null,null,null,null,null,null,null,null,null,null,null,null,null,null,null,null,null,"OTND_SpecialDayRestDay"]
[null,null,null,null,null,null,null,null,null,null,null,null,null,null,null,null,null,null,null,null,null,null,null,"Days_HolidayPay"]
[null,null,null,null,null,null,null,null,null,null,null,null,null,null,null,null,null,null,null,null,null,null,null,"Days_SL_Taxable"]
[null,null,null,null,null,null,null,null,null,null,null,null,null,null,null,null,null,null,null,null,null,null,null,"Days_SL_NonTaxable"]
[null,null,null,null,null,null,null,null,null,null,null,null,null,null,null,null,null,null,null,null,null,null,null,"Days_VL_Taxable"]
[null,null,null,null,null,null,null,null,null,null,null,null,null,null,null,null,null,null,null,null,null,null,null,"Days_VL_NonTaxable"]
[null,null,null,null,null,null,null,null,null,null,null,null,null,null,null,null,null,null,null,null,null,null,null,"SL_NonTaxable"]
[null,null,null,null,null,null,null,null,null,null,null,null,null,null,null,null,null,null,null,null,null,null,null,"VL_NonTaxable"]
[null,null,null,null,null,null,null,null,null,null,null,null,null,null,null,null,null,null,null,null,null,null,null,"SL_Taxable"]
[null,null,null,null,null,null,null,null,null,null,null,null,null,null,null,null,null,null,null,null,null,null,null,"VL_Taxable"]